{"text_format":"1","workbook":"xlsx","n_sheets":38,"sheets":["Инструкция","Обновление","Лог обновления","Титульный","Актив","Пассив","Расшифровка показателей","Комментарии","Проверка","AllSheetsInThisWorkbook","et_union","TEHSHEET","REESTR_ORG","REESTR_FILTERED","REESTR_MO","modHyperlink","modChange","modPROV","modTitleSheetHeaders","modServiceModule","modCommandButton","modReestr","modClassifierValidate","modInfo","modfrmReestr","modfrmDateChoose","modDblClick","modUpdTemplMain","modRegionSelectSub","modThisWorkbook","modReestrMO","modSheetMain01","modSheetMain02","modSheetMain03","modSheetMain04","modSheetMain05","modSheetMain06","Паспорт"],"not_rendered":{"charts":0,"images":11,"macros":1,"external_links":0,"defined_names":202,"comments":0,"pivot_tables":0},"unopened":[],"bounds":{"document_bytes":16777216,"sheet_cells":100000,"rows_first":2000,"rows_last":500,"rows_between":2000,"halvings":0,"cell_chars":16384,"cell_head_chars":4096},"cells_cut":0,"cells_raw":0,"read":"whole","date_system":"1900"}

{"sheet":"Инструкция","index":0,"n_rows":53,"n_cols":6,"rows_kept":53,"cut":false,"hidden":false,"merged":[[13,4,14,7],[24,2,24,3],[17,2,17,7],[21,2,21,7],[22,2,22,4],[20,2,20,7],[18,2,18,7],[24,4,24,7],[29,2,29,3],[29,4,29,7],[42,2,42,3],[43,2,43,3],[42,5,42,8],[31,2,31,4],[32,2,32,3],[43,5,43,8],[36,4,36,7],[33,2,33,3],[39,1,39,9],[34,2,34,3],[34,4,34,7],[36,2,36,3],[35,4,35,7],[48,2,48,3],[46,2,46,3],[47,2,47,3],[32,4,32,7],[45,5,45,8],[47,5,47,8],[48,5,48,8],[46,5,46,8],[33,4,33,7],[44,5,44,8],[35,2,35,3],[44,2,44,3],[45,2,45,3],[51,2,51,3],[52,2,52,3],[49,5,49,8],[50,5,50,8],[51,5,51,8],[52,5,52,8],[50,2,50,3],[49,2,49,3],[28,2,28,3],[28,4,28,7],[3,1,3,9],[23,2,23,3],[23,4,23,7],[19,2,19,7],[27,2,27,3],[27,4,27,7],[25,2,25,3],[25,4,25,7],[6,2,6,7],[7,2,7,7],[8,2,8,7],[9,2,9,7],[26,2,26,3],[26,4,26,7]]}
[]
[null,null,null,null,"FORMA1.BUHG.2011"]
[]
[null,"Инструкция по заполнению шаблона\n\"Бухгалтерский баланс\""]
[]
[]
[null,null,"Технические требования:\n\n• макросы во время работы должны быть включены \n\n"]
[null,null,"• на рабочем месте должен быть установлен MS Office 2007, 2010, 2013  с полной версией MS Excel"]
[null,null,"• макросы во время работы должны быть включены "]
[null,null,"• для корректной работы шаблона требуется выбрать низкий уровень безопасности\n((В MS Excel 2007 после открытия файла шаблона нажать на кнопку «Параметры…» → «Предупреждение системы безопасности» → «Включить это содержимое» → «OK»)"]
[null,null,null,"Цвета ячеек:"]
[null,null,null,"●","Голубой – ячейки, обязательные для заполнения;"]
[null,null,null,"●","Желтый – ячейки, предназначенные для заполнения;"]
[null,null,null,"●","Зеленый – ячейки с формулами/константами или заполняемые автоматически (например, при выборе организации из реестра или выборе даты)."]
[]
[null,null,null,"Пояснение к заполнению (необходимо нажать один раз)."]
[]
[null,null,"Шаблон может быть сохранен на любом этапе заполнения!"]
[null,null,"• При сохранении шаблона осуществляется проверка на наличие и корректность (например, КПП – 9 цифр) обязательных параметров на листах. "]
[null,null,"• Если какая-то ячейка не удовлетворяет условию проверки, на лист «Проверка» добавляется гиперссылка на данную ячейку и причина, по которой шаблон не будет загружен в хранилище данных. "]
[null,null,"• В колонке «Статус ошибки» для каждого сообщения возможны 2 значения: ошибка и предупреждение. "]
[null,null,"• При наличии сообщений со статусом «Ошибка» шаблон будет отклонён системой, сообщения со статусом «Предупреждение» носят информационный характер, и такой шаблон будет принят системой."]
[null,null,"Организационно-технические консультации:"]
[null,null,"ФИО:"]
[null,null,"телефон:"]
[null,null,"e-mail:"]
[null,null,"WEB-сайт:"]
[null,null,"Комментарий"]
[null,null,"Дистрибутивы:"]
[null,null,"Дистрибутивы (ссылка):"]
[]
[null,null,"Консультации по методологии заполнения форм:"]
[null,null,"ФИО:"]
[null,null,"телефон:"]
[null,null,"e-mail:"]
[null,null,"WEB-сайт:"]
[null,null,"Комментарий"]
[]
[]
[null,"Список сокращений"]
[]
[]
[null,null,"Сокращение",null,"Расшифровка","Данные"]
[null,null,1,null,2,3]
[null,null,"ОКПО",null,"Общероссийский классификатор предприятий и организаций"]
[null,null,"ОКВЭД",null,"Общероссийский классификатор видов экономической деятельности","http://www.gmcgks.ru/new_page_96.htm"]
[null,null,"ОКАТО",null,"Общероссийский классификатор объектов административно-территориального деления","http://www.gmcgks.ru/new_page_87.htm"]
[null,null,"ОКОГУ",null,"Общероссийский классификатор органов государственной власти и управления","http://www.gmcgks.ru/new_page_77.htm"]
[null,null,"ОКОПФ",null,"Общероссийский классификатор организационно-правовых форм","http://www.gmcgks.ru/new_page_95.htm"]
[null,null,"ОКФС",null,"Общероссийский классификатор форм собственности","http://www.gmcgks.ru/new_page_94.htm"]
[null,null,"ОКУД",null,"Общероссийский классификатор управленческой документации","http://www.gmcgks.ru/new_page_80.htm"]
[null,null,"ОКЕИ",null,"Общероссийский классификатор единиц измерения","http://www.gmcgks.ru/new_page_83.htm"]
[null,null,"ОКТМО",null,"Общероссийский классификатор территорий муниципальных образований","http://www.gks.ru/metod/classifiers.html"]

{"sheet":"Обновление","index":1,"n_rows":24,"n_cols":15,"rows_kept":24,"cut":false,"hidden":true,"merged":[[1,14,1,16],[2,2,2,15],[23,2,23,7],[23,8,23,15]]}
[]
[null,null,null,null,null,null,null,null,null,null,null,null,null,null,{"$f":"version","v":0}]
[null,null,"Инструкция по обновлению шаблона"]
[]
[]
[]
[]
[]
[]
[]
[]
[]
[]
[]
[]
[]
[]
[]
[]
[]
[]
[]
[]
[null,null,"Если компьютер имеет подключение к Интернет, можно автоматически проверять наличие доступных обновлений. Выберите способ оповещения о наличии обновлений для шаблона:"]

{"sheet":"Лог обновления","index":2,"n_rows":29,"n_cols":3,"rows_kept":29,"cut":false,"hidden":true,"merged":[]}
["Дата/Время","Сообщение","Статус"]
["3/8/2013  6:25:39 PM","Проверка доступных обновлений...","Информация"]
["3/8/2013  6:25:40 PM","Версия шаблона 2.2 актуальна, обновление не требуется","Информация"]
["11/3/2016  3:11:47 AM","Проверка доступных обновлений...","Информация"]
["11/3/2016  3:11:49 AM","Версия шаблона 2.2 актуальна, обновление не требуется","Информация"]
["11/3/2016  3:12:06 AM","Проверка доступных обновлений...","Информация"]
["11/3/2016  3:12:07 AM","Версия шаблона 2.2 актуальна, обновление не требуется","Информация"]
["11/9/2016  5:39:55 PM","Проверка доступных обновлений...","Информация"]
["11/9/2016  5:39:56 PM","Версия шаблона 2.2 актуальна, обновление не требуется","Информация"]
["11/11/2016  10:14:39 AM","Проверка доступных обновлений...","Информация"]
["11/11/2016  10:14:40 AM","Версия шаблона 2.2 актуальна, обновление не требуется","Информация"]
["11/11/2016  10:20:56 AM","Проверка доступных обновлений...","Информация"]
["11/11/2016  10:20:57 AM","Версия шаблона 2.2 актуальна, обновление не требуется","Информация"]
["11/11/2016  10:29:59 AM","Проверка доступных обновлений...","Информация"]
["11/11/2016  10:30:00 AM","Версия шаблона 2.2 актуальна, обновление не требуется","Информация"]
["11/14/2016  7:43:39 PM","Проверка доступных обновлений...","Информация"]
["11/14/2016  7:43:40 PM","Версия шаблона 2.2 актуальна, обновление не требуется","Информация"]
["11/15/2016  5:58:56 PM","Проверка доступных обновлений...","Информация"]
["11/15/2016  5:58:57 PM","Версия шаблона 2.2 актуальна, обновление не требуется","Информация"]
["11/17/2016  8:16:44 PM","Проверка доступных обновлений...","Информация"]
["11/17/2016  8:16:45 PM","Версия шаблона 2.2 актуальна, обновление не требуется","Информация"]
["12/16/2016  6:24:54 PM","Проверка доступных обновлений...","Информация"]
["12/16/2016  6:24:55 PM","Версия шаблона 2.2 актуальна, обновление не требуется","Информация"]
["12/16/2016  6:52:09 PM","Проверка доступных обновлений...","Информация"]
["12/16/2016  6:52:10 PM","Версия шаблона 2.2 актуальна, обновление не требуется","Информация"]
["3/29/2017  3:55:21 PM","Проверка доступных обновлений...","Информация"]
["3/29/2017  3:55:22 PM","Версия шаблона 2.2 актуальна, обновление не требуется","Информация"]
["4/19/2017  12:27:35 PM","Проверка доступных обновлений...","Информация"]
["4/19/2017  12:27:36 PM","Версия шаблона 2.2 актуальна, обновление не требуется","Информация"]

{"sheet":"Титульный","index":3,"n_rows":51,"n_cols":10,"rows_kept":51,"cut":false,"hidden":false,"merged":[[45,3,45,5],[22,8,22,9],[20,8,20,9],[21,8,21,9],[50,3,50,5],[46,3,46,5],[47,3,47,5],[48,3,48,5],[26,3,26,5],[28,3,28,5],[44,2,44,5],[38,7,42,9],[40,2,40,5],[32,2,32,5],[33,3,33,5],[41,3,41,5],[3,1,3,10],[2,9,2,10],[5,1,5,10],[8,3,8,5],[26,10,28,10],[11,3,11,5],[18,8,18,9],[16,8,16,9],[17,8,17,9],[10,2,10,5],[18,3,18,5],[17,2,17,5],[15,3,15,5],[13,3,13,5],[12,3,12,5],[42,3,42,5],[19,7,19,9],[19,3,19,5],[20,3,20,5],[24,8,24,9],[22,3,22,5],[30,3,30,5],[21,3,21,5],[24,3,24,5],[34,3,34,5],[38,3,38,5],[36,2,36,5],[37,3,37,5]]}
[null,null,null,null,null,null,null,null,null,"01.01.2016"]
[]
[]
[null,"Бухгалтерский баланс"]
[]
[null,"Приложение\nк Приказу Минфина РФ\nот 02.07.2010 № 66н\n(в ред. Приказов Минфина России от 05.10.2011 №124н, \nот 17.08.2012 №113н, от 04.12.2012 №154н)"]
[]
[null,null,"Создать печатную форму"]
[null,null,"Регион РФ","Рязанская область"]
[]
[null,null,"Отчётный период"]
[null,null,"Год","2016"]
[null,null,"Квартал (с нарастающим итогом)","год"]
[null,null,"Отчётная дата","31.12.2016"]
[]
[null,null,"Признак филиала","нет"]
[null,null,null,null,null,null,null,"Форма №1 по ОКУД","0710001"]
[null,null,null,null,null,null,null,"Дата (год,месяц,число)","31.12.2016"]
[null,null,"Организация:","МУНИЦИПАЛЬНОЕ ПРЕДПРИЯТИЕ \"ВОДОКАНАЛ ГОРОДА РЯЗАНИ\"",null,null,null,"Код* по ОКПО","03219667"]
[null,null,"Наименование филиала:     "]
[null,null,"ИНН:","6227004811",null,null,null,"Является ли организация субъектом малого предпринимательства","нет"]
[null,null,"КПП:","623401001",null,null,null,"2016","третьим или последующим отчетным годом"]
[null,null,"Вид деятельности:","Холодное водоснабжение; Водоотведение",null,null,null,"Код* по ОКВЭД","41.00.2"]
[null,null,"Организационно-правовая форма/форма собственности:","МУНИЦИПАЛЬНОЕ ПРЕДПРИЯТИЕ \"ВОДОКАНАЛ ГОРОДА РЯЗАНИ\"","/","муниципальная собсьвенность",null,"Код* по ОКОПФ/ОКФС ","14","42"]
[null,null,"Единица измерения","тыс.руб.",null,null,null,"Код* по ОКЕИ","384"]
[]
[null,null,"Муниципальный район","Город Рязань"]
[]
[null,null,"Муниципальное образование","Город Рязань"]
[]
[null,null,"ОКТМО","61701000"]
[]
[null,null,"Адрес организации"]
[null,null,"Юридический адрес:","390027, ОБЛ РЯЗАНСКАЯ, Г РЯЗАНЬ, Ш КАСИМОВСКОЕ, д.9"]
[null,null,"Почтовый адрес:","390000, Рязанская Область, Рязань Город, Касимовское Шоссе, д.9"]
[]
[null,null,"Руководитель"]
[null,null,"Фамилия, имя, отчество:","Штефае Олег Борисович"]
[null,null,"(код) номер телефона:","(4912) 41 00 10 ",null,null,null,"* Расшифровки всех сокращений и ссылки приведены на листе \"Инструкция\""]
[]
[null,null,"Главный бухгалтер"]
[null,null,"Фамилия, имя, отчество:","Куранова Наталия Александровна"]
[null,null,"(код) номер телефона:","(4912) 41 80 48"]
[]
[null,null,"Должностное лицо, ответственное за составление формы"]
[null,null,"Фамилия, имя, отчество:","Оболенцева Екатерина Николаевна"]
[null,null,"Должность:","Начальник планово-экономического отдела"]
[null,null,"(код) номер телефона:","(4912) 41 02 13"]
[null,null,"e-mail:","obn@vkrzn.ru "]
[]
[null,null,"Дата составления документа",{"$f":"TODAY()","v":"2017-04-19"}]

{"sheet":"Актив","index":4,"n_rows":32,"n_cols":18,"rows_kept":32,"cut":false,"hidden":false,"merged":[[12,5,12,6],[23,5,23,6],[7,3,7,17],[11,7,11,9],[11,13,11,15],[10,7,10,9],[10,13,10,15],[10,10,10,12],[11,10,11,12]]}
[]
["Амурская область"]
[]
[]
[]
[]
[null,null,null,null,null,null,null,null,null,null,null,null,null,null,null,null,null,"Форма 0710001 с. 1"]
[null,null,null,"АКТИВ"]
[]
[null,null,null,null,null,null,null,null,null,null,null,null,null,null,null,null,{"$f":"IF(unit=\"\",\"\",unit)","v":"тыс.руб."}]
[null,null,null,null,"№ п/п","Актив","Код показателя",{"$f":"\"На \" & IF(report_date=\"\",\" отчётную дату отчётного года\",report_date&\" г.\")","v":"На 31.12.2016 г."},null,null,{"$f":"\"На 31 декабря \" & IF(god=\"\",\" предыдущего года\",god-1&\" г.\")","v":"На 31 декабря 2015 г."},null,null,{"$f":"\"На 31 декабря \" & IF(god=\"\",\" года, предшествующего предыдущему\",god-2&\" г.\")","v":"На 31 декабря 2014 г."},null,null,"Пояснения"]
[null,null,null,null,1,"2","3","4",null,null,"5",null,null,"6",null,null,"7"]
[null,null,null,null,1,"I. ВНЕОБОРОТНЫЕ АКТИВЫ"]
[null,"1110",null,null,"1.1","Нематериальные активы","1110"]
[null,"1120",null,null,"1.2","Результаты исследований и разработок","1120"]
[null,1180]
[null,1190]
[null,"1130",null,null,"1.3","Основные средства ","1130",null,1821068,null,null,1662297,null,null,1658982]
[null,"1140",null,null,"1.4","Доходные вложения в материальные ценности","1140"]
[null,"1150",null,null,"1.5","Финансовые вложения","1150",null,20,null,null,20,null,null,20]
[null,"1160",null,null,"1.6","Отложенные налоговые активы","1160",null,2868,null,null,3253,null,null,11542]
[null,"1170",null,null,"1.7","Прочие внеоборотные активы","1170",null,115226,null,null,261911,null,null,210085]
[null,"1100",null,null,"1.8","ИТОГО по разделу I","1100",{"$f":"IF((SUMIF(OFFSET(SUM_1100_1,0,-1),\"\",SUM_1100_1)-SUMIF(OFFSET(SUM_1100_1,0,-1),\"(\",SUM_1100_1))<0,\"(\",\"\")","v":""},{"$f":"ABS(SUMIF(OFFSET(SUM_1100_1,0,-1),\"\",SUM_1100_1)-SUMIF(OFFSET(SUM_1100_1,0,-1),\"(\",SUM_1100_1))","v":1939182},{"$f":"IF(H23=\"(\",\")\",\"\")","v":""},{"$f":"IF((SUMIF(OFFSET(SUM_1100_2,0,-1),\"\",SUM_1100_2)-SUMIF(OFFSET(SUM_1100_2,0,-1),\"(\",SUM_1100_2))<0,\"(\",\"\")","v":""},{"$f":"ABS(SUMIF(OFFSET(SUM_1100_2,0,-1),\"\",SUM_1100_2)-SUMIF(OFFSET(SUM_1100_2,0,-1),\"(\",SUM_1100_2))","v":1927481},{"$f":"IF(K23=\"(\",\")\",\"\")","v":""},{"$f":"IF((SUMIF(OFFSET(SUM_1100_3,0,-1),\"\",SUM_1100_3)-SUMIF(OFFSET(SUM_1100_3,0,-1),\"(\",SUM_1100_3))<0,\"(\",\"\")","v":""},{"$f":"ABS(SUMIF(OFFSET(SUM_1100_3,0,-1),\"\",SUM_1100_3)-SUMIF(OFFSET(SUM_1100_3,0,-1),\"(\",SUM_1100_3))","v":1880629},{"$f":"IF(N23=\"(\",\")\",\"\")","v":""}]
[null,null,null,null,"2","II. ОБОРОТНЫЕ АКТИВЫ"]
[null,null,null,null,"2.1","Запасы","1210",null,53607,null,null,47372,null,null,44405]
[null,null,null,null,"2.2","Налог на добавленную стоимость по приобретенным ценностям","1220",null,7542,null,null,11997,null,null,16618]
[null,null,null,null,"2.3","Дебиторская задолженность","1230",null,295458,null,null,300686,null,null,256515]
[null,null,null,null,"2.4","Финансовые вложения (за исключением денежных эквивалентов)","1240"]
[null,null,null,null,"2.5","Денежные средства и денежные эквиваленты","1250",null,22661,null,null,30778,null,null,52640]
[null,null,null,null,"2.6","Прочие оборотные активы","1260",null,25228,null,null,27892,null,null,18270]
[null,null,null,null,"2.7","ИТОГО по разделу II","1200",{"$f":"IF((SUMIF(OFFSET(SUM_1200_1,0,-1),\"\",SUM_1200_1)-SUMIF(OFFSET(SUM_1200_1,0,-1),\"(\",SUM_1200_1))<0,\"(\",\"\")","v":""},{"$f":"ABS(SUMIF(OFFSET(SUM_1200_1,0,-1),\"\",SUM_1200_1)-SUMIF(OFFSET(SUM_1200_1,0,-1),\"(\",SUM_1200_1))","v":404496},{"$f":"IF(H31=\"(\",\")\",\"\")","v":""},{"$f":"IF((SUMIF(OFFSET(SUM_1200_2,0,-1),\"\",SUM_1200_2)-SUMIF(OFFSET(SUM_1200_2,0,-1),\"(\",SUM_1200_2))<0,\"(\",\"\")","v":""},{"$f":"ABS(SUMIF(OFFSET(SUM_1200_2,0,-1),\"\",SUM_1200_2)-SUMIF(OFFSET(SUM_1200_2,0,-1),\"(\",SUM_1200_2))","v":418725},{"$f":"IF(K31=\"(\",\")\",\"\")","v":""},{"$f":"IF((SUMIF(OFFSET(SUM_1200_3,0,-1),\"\",SUM_1200_3)-SUMIF(OFFSET(SUM_1200_3,0,-1),\"(\",SUM_1200_3))<0,\"(\",\"\")","v":""},{"$f":"ABS(SUMIF(OFFSET(SUM_1200_3,0,-1),\"\",SUM_1200_3)-SUMIF(OFFSET(SUM_1200_3,0,-1),\"(\",SUM_1200_3))","v":388448},{"$f":"IF(N31=\"(\",\")\",\"\")","v":""}]
[null,null,null,null,"3","БАЛАНС ","1600",{"$f":"IF((IF(H23=\"(\",-LINE_1100_1,LINE_1100_1)+IF(H31=\"(\",-LINE_1200_1,LINE_1200_1))<0,\"(\",\"\")","v":""},{"$f":"ABS(IF(H23=\"(\",-LINE_1100_1,LINE_1100_1)+IF(H31=\"(\",-LINE_1200_1,LINE_1200_1))","v":2343678},"",{"$f":"IF((IF(K23=\"(\",-LINE_1100_2,LINE_1100_2)+IF(K31=\"(\",-LINE_1200_2,LINE_1200_2))<0,\"(\",\"\")","v":""},{"$f":"ABS(IF(K23=\"(\",-LINE_1100_2,LINE_1100_2)+IF(K31=\"(\",-LINE_1200_2,LINE_1200_2))","v":2346206},"",{"$f":"IF((IF(N23=\"(\",-LINE_1100_3,LINE_1100_3)+IF(N31=\"(\",-LINE_1200_3,LINE_1200_3))<0,\"(\",\"\")","v":""},{"$f":"ABS(IF(N23=\"(\",-LINE_1100_3,LINE_1100_3)+IF(N31=\"(\",-LINE_1200_3,LINE_1200_3))","v":2269077},""]

{"sheet":"Пассив","index":5,"n_rows":34,"n_cols":18,"rows_kept":34,"cut":false,"hidden":false,"merged":[[7,3,7,17],[12,5,12,6],[20,5,20,6],[26,5,26,6],[10,7,10,9],[10,13,10,15],[11,7,11,9],[11,13,11,15],[10,10,10,12],[11,10,11,12]]}
[]
["Амурская область"]
[]
[]
[]
[]
[null,null,null,null,null,null,null,null,null,null,null,null,null,null,null,null,null,"Форма 0710001 с. 2"]
[null,null,null,"ПАССИВ"]
[]
[null,null,null,null,null,null,null,null,null,null,null,null,null,null,null,null,{"$f":"IF(unit=\"\",\"\",unit)","v":"тыс.руб."}]
[null,null,null,null,"№ п/п","Пассив","Код показателя",{"$f":"\"На \" & IF(report_date=\"\",\" отчётную дату отчётного года\",report_date&\" г.\")","v":"На 31.12.2016 г."},null,null,{"$f":"\"На 31 декабря \" & IF(god=\"\",\" предыдущего года\",god-1&\" г.\")","v":"На 31 декабря 2015 г."},null,null,{"$f":"\"На 31 декабря \" & IF(god=\"\",\" года, предшествующего предыдущему\",god-2&\" г.\")","v":"На 31 декабря 2014 г."},null,null,"Пояснения"]
[null,null,null,null,1,"2","3","4",null,null,"5",null,null,"6",null,null,"7"]
[null,null,null,null,1,"III. КАПИТАЛ И РЕЗЕРВЫ"]
[null,null,null,null,"1.1","Уставный капитал (складочный капитал, уставный фонд, вклады товарищей)","1310",null,51,null,null,51,null,null,51]
[null,null,null,null,"1.2","Собственные акции, выкупленные у акционеров","1320","(",null,")","(",null,")","(",null,")"]
[null,null,null,null,"1.3","Переоценка внеоборотных активов","1340",null,333568,null,null,334085,null,null,334736]
[null,null,null,null,"1.4","Добавочный капитал (без переоценки)","1350"]
[null,null,null,null,"1.5","Резервный капитал","1360"]
[null,null,null,null,"1.6","Нераспределенная прибыль (непокрытый убыток)","1370",null,1313541,null,null,1261041,null,null,1249437]
[null,null,null,null,"1.7","ИТОГО по разделу III","1300",{"$f":"IF((SUMIF(OFFSET(SUM_1300_1,0,-1),\"\",SUM_1300_1)-SUMIF(OFFSET(SUM_1300_1,0,-1),\"(\",SUM_1300_1))<0,\"(\",\"\")","v":""},{"$f":"ABS(SUMIF(OFFSET(SUM_1300_1,0,-1),\"\",SUM_1300_1)-SUMIF(OFFSET(SUM_1300_1,0,-1),\"(\",SUM_1300_1))","v":1647160},{"$f":"IF(H20=\"(\",\")\",\"\")","v":""},{"$f":"IF((SUMIF(OFFSET(SUM_1300_2,0,-1),\"\",SUM_1300_2)-SUMIF(OFFSET(SUM_1300_2,0,-1),\"(\",SUM_1300_2))<0,\"(\",\"\")","v":""},{"$f":"ABS(SUMIF(OFFSET(SUM_1300_2,0,-1),\"\",SUM_1300_2)-SUMIF(OFFSET(SUM_1300_2,0,-1),\"(\",SUM_1300_2))","v":1595177},{"$f":"IF(K20=\"(\",\")\",\"\")","v":""},{"$f":"IF((SUMIF(OFFSET(SUM_1300_3,0,-1),\"\",SUM_1300_3)-SUMIF(OFFSET(SUM_1300_3,0,-1),\"(\",SUM_1300_3))<0,\"(\",\"\")","v":""},{"$f":"ABS(SUMIF(OFFSET(SUM_1300_3,0,-1),\"\",SUM_1300_3)-SUMIF(OFFSET(SUM_1300_3,0,-1),\"(\",SUM_1300_3))","v":1584224},{"$f":"IF(N20=\"(\",\")\",\"\")","v":""}]
[null,null,null,null,"2","IV. ДОЛГОСРОЧНЫЕ ОБЯЗАТЕЛЬСТВА"]
[null,null,null,null,"2.1","Заемные средства","1410"]
[null,null,null,null,"2.2","Отложенные налоговые обязательства","1420",null,33644,null,null,32918,null,null,40931]
[null,null,null,null,"2.3","Оценочные обязательства","1430"]
[null,null,null,null,"2.3","Прочие обязательства","1450"]
[null,null,null,null,"2.4","ИТОГО по разделу IV","1400",{"$f":"IF((SUMIF(OFFSET(SUM_1400_1,0,-1),\"\",SUM_1400_1)-SUMIF(OFFSET(SUM_1400_1,0,-1),\"(\",SUM_1400_1))<0,\"(\",\"\")","v":""},{"$f":"ABS(SUMIF(OFFSET(SUM_1400_1,0,-1),\"\",SUM_1400_1)-SUMIF(OFFSET(SUM_1400_1,0,-1),\"(\",SUM_1400_1))","v":33644},{"$f":"IF(H26=\"(\",\")\",\"\")","v":""},{"$f":"IF((SUMIF(OFFSET(SUM_1400_2,0,-1),\"\",SUM_1400_2)-SUMIF(OFFSET(SUM_1400_2,0,-1),\"(\",SUM_1400_2))<0,\"(\",\"\")","v":""},{"$f":"ABS(SUMIF(OFFSET(SUM_1400_2,0,-1),\"\",SUM_1400_2)-SUMIF(OFFSET(SUM_1400_2,0,-1),\"(\",SUM_1400_2))","v":32918},{"$f":"IF(K26=\"(\",\")\",\"\")","v":""},{"$f":"IF((SUMIF(OFFSET(SUM_1400_3,0,-1),\"\",SUM_1400_3)-SUMIF(OFFSET(SUM_1400_3,0,-1),\"(\",SUM_1400_3))<0,\"(\",\"\")","v":""},{"$f":"ABS(SUMIF(OFFSET(SUM_1400_3,0,-1),\"\",SUM_1400_3)-SUMIF(OFFSET(SUM_1400_3,0,-1),\"(\",SUM_1400_3))","v":40931},{"$f":"IF(N26=\"(\",\")\",\"\")","v":""}]
[null,null,null,null,"3","V. КРАТКОСРОЧНЫЕ ОБЯЗАТЕЛЬСТВА"]
[null,null,null,null,"3.1","Заемные средства","1510",null,null,null,null,null,null,null,35942]
[null,null,null,null,"3.2","Кредиторская задолженность","1520",null,626008,null,null,672434,null,null,554548]
[null,null,null,null,"3.3","Доходы будущих периодов ","1530",null,36547,null,null,42742,null,null,51191]
[null,null,null,null,"3.4","Оценочные обязательства","1540"]
[null,null,null,null,"3.5","Прочие обязательства","1550",null,319,null,null,2935,null,null,2241]
[null,null,null,null,"3.6","ИТОГО по разделу V","1500",{"$f":"IF((SUMIF(OFFSET(SUM_1500_1,0,-1),\"\",SUM_1500_1)-SUMIF(OFFSET(SUM_1500_1,0,-1),\"(\",SUM_1500_1))<0,\"(\",\"\")","v":""},{"$f":"ABS(SUMIF(OFFSET(SUM_1500_1,0,-1),\"\",SUM_1500_1)-SUMIF(OFFSET(SUM_1500_1,0,-1),\"(\",SUM_1500_1))","v":662874},{"$f":"IF(H33=\"(\",\")\",\"\")","v":""},{"$f":"IF((SUMIF(OFFSET(SUM_1500_2,0,-1),\"\",SUM_1500_2)-SUMIF(OFFSET(SUM_1500_2,0,-1),\"(\",SUM_1500_2))<0,\"(\",\"\")","v":""},{"$f":"ABS(SUMIF(OFFSET(SUM_1500_2,0,-1),\"\",SUM_1500_2)-SUMIF(OFFSET(SUM_1500_2,0,-1),\"(\",SUM_1500_2))","v":718111},{"$f":"IF(K33=\"(\",\")\",\"\")","v":""},{"$f":"IF((SUMIF(OFFSET(SUM_1500_3,0,-1),\"\",SUM_1500_3)-SUMIF(OFFSET(SUM_1500_3,0,-1),\"(\",SUM_1500_3))<0,\"(\",\"\")","v":""},{"$f":"ABS(SUMIF(OFFSET(SUM_1500_3,0,-1),\"\",SUM_1500_3)-SUMIF(OFFSET(SUM_1500_3,0,-1),\"(\",SUM_1500_3))","v":643922},{"$f":"IF(N33=\"(\",\")\",\"\")","v":""}]
[null,null,null,null,"4","БАЛАНС ","1700",{"$f":"IF((IF(H20=\"(\",-LINE_1300_1,LINE_1300_1)+IF(H26=\"(\",-LINE_1400_1,LINE_1400_1)+IF(H33=\"(\",-LINE_1500_1,LINE_1500_1))<0,\"(\",\"\")","v":""},{"$f":"ABS(IF(H20=\"(\",-LINE_1300_1,LINE_1300_1)+IF(H26=\"(\",-LINE_1400_1,LINE_1400_1)+IF(H33=\"(\",-LINE_1500_1,LINE_1500_1))","v":2343678},"",{"$f":"IF((IF(K20=\"(\",-LINE_1300_2,LINE_1300_2)+IF(K26=\"(\",-LINE_1400_2,LINE_1400_2)+IF(K33=\"(\",-LINE_1500_2,LINE_1500_2))<0,\"(\",\"\")","v":""},{"$f":"ABS(IF(K20=\"(\",-LINE_1300_2,LINE_1300_2)+IF(K26=\"(\",-LINE_1400_2,LINE_1400_2)+IF(K33=\"(\",-LINE_1500_2,LINE_1500_2))","v":2346206},"",{"$f":"IF((IF(N20=\"(\",-LINE_1300_3,LINE_1300_3)+IF(N26=\"(\",-LINE_1400_3,LINE_1400_3)+IF(N33=\"(\",-LINE_1500_3,LINE_1500_3))<0,\"(\",\"\")","v":""},{"$f":"ABS(IF(N20=\"(\",-LINE_1300_3,LINE_1300_3)+IF(N26=\"(\",-LINE_1400_3,LINE_1400_3)+IF(N33=\"(\",-LINE_1500_3,LINE_1500_3))","v":2269077},""]

{"sheet":"Расшифровка показателей","index":6,"n_rows":162,"n_cols":17,"rows_kept":162,"cut":false,"hidden":false,"merged":[[7,3,7,16],[10,7,10,9],[10,13,10,15],[11,7,11,9],[11,13,11,15],[10,10,10,12],[11,10,11,12]]}
[]
["Амурская область"]
[]
[]
[]
[]
[null,null,null,null,null,null,null,null,null,null,null,null,null,null,null,null,"Форма 0710001 с. 3"]
[null,null,null,"Расшифровка отдельных показателей бухгалтерского баланса"]
[]
[null,null,null,null,null,null,null,null,null,null,null,null,null,null,null,{"$f":"IF(unit=\"\",\"\",unit)","v":"тыс.руб."}]
[null,null,null,null,"№ п/п","Наименование","Код показателя",{"$f":"\"На \" & IF(report_date=\"\",\" отчётную дату отчётного года\",report_date&\" г.\")","v":"На 31.12.2016 г."},null,null,{"$f":"\"На 31 декабря \" & IF(god=\"\",\" предыдущего года\",god-1&\" г.\")","v":"На 31 декабря 2015 г."},null,null,{"$f":"\"На 31 декабря \" & IF(god=\"\",\" года, предшествующего предыдущему\",god-2&\" г.\")","v":"На 31 декабря 2014 г."}]
[null,null,null,null,1,"2","3","4",null,null,"5",null,null,"6"]
[null,null,null,null,"1","Нематериальные активы (стр.1110), в том числе:",null,{"$f":"IF(Актив!H14=\"(\",\"(\",\"\")","v":""},{"$f":"Актив!I14","v":0},{"$f":"IF(H13=\"(\",\")\",\"\")","v":""},{"$f":"IF(Актив!K14=\"(\",\"(\",\"\")","v":""},{"$f":"Актив!L14","v":0},{"$f":"IF(K13=\"(\",\")\",\"\")","v":""},{"$f":"IF(Актив!N14=\"(\",\"(\",\"\")","v":""},{"$f":"Актив!O14","v":0},{"$f":"IF(N13=\"(\",\")\",\"\")","v":""}]
[null,null,null,null,"1.1",null,"11101"]
[null,null,null,null,"1.2",null,"11102"]
[null,null,null,null,"1.3",null,"11103"]
[null,null,null,null,null,"Добавить строку"]
[null,null,null,null,"2","Результаты исследований и разработок (стр.1120), в том числе:",null,{"$f":"IF(Актив!H15=\"(\",\"(\",\"\")","v":""},{"$f":"Актив!I15","v":0},{"$f":"IF(H18=\"(\",\")\",\"\")","v":""},{"$f":"IF(Актив!K15=\"(\",\"(\",\"\")","v":""},{"$f":"Актив!L15","v":0},{"$f":"IF(K18=\"(\",\")\",\"\")","v":""},{"$f":"IF(Актив!N15=\"(\",\"(\",\"\")","v":""},{"$f":"Актив!O15","v":0},{"$f":"IF(N18=\"(\",\")\",\"\")","v":""}]
[null,null,null,null,"2.1",null,"11201"]
[null,null,null,null,"2.2",null,"11202"]
[null,null,null,null,null,"Добавить строку"]
[]
[]
[]
[]
[]
[]
[]
[]
[null,null,null,null,"5",{"$f":"\"Основные средства  (стр.\"&Актив!$G$18&\"), в том числе:\"","v":"Основные средства  (стр.1130), в том числе:"},null,{"$f":"IF(Актив!H18=\"(\",\"(\",\"\")","v":""},{"$f":"Актив!I18","v":1821068},{"$f":"IF(H30=\"(\",\")\",\"\")","v":""},{"$f":"IF(Актив!K18=\"(\",\"(\",\"\")","v":""},{"$f":"Актив!L18","v":1662297},{"$f":"IF(K30=\"(\",\")\",\"\")","v":""},{"$f":"IF(Актив!N18=\"(\",\"(\",\"\")","v":""},{"$f":"Актив!O18","v":1658982},{"$f":"IF(N30=\"(\",\")\",\"\")","v":""}]
[null,null,null,null,"5.1",null,{"$f":"Актив!$G$18&\"1\"","v":"11301"}]
[null,null,null,null,"5.2",null,{"$f":"Актив!$G$18&\"2\"","v":"11302"}]
[null,null,null,null,"5.3",null,{"$f":"Актив!$G$18&\"3\"","v":"11303"}]
[null,null,null,null,null,"Добавить строку"]
[null,null,null,null,"6",{"$f":"\"Доходные вложения (стр.\"&Актив!$G$19&\"), в том числе:\"","v":"Доходные вложения (стр.1140), в том числе:"},null,{"$f":"IF(Актив!H19=\"(\",\"(\",\"\")","v":""},{"$f":"Актив!I19","v":0},{"$f":"IF(H35=\"(\",\")\",\"\")","v":""},{"$f":"IF(Актив!K19=\"(\",\"(\",\"\")","v":""},{"$f":"Актив!L19","v":0},{"$f":"IF(K35=\"(\",\")\",\"\")","v":""},{"$f":"IF(Актив!N19=\"(\",\"(\",\"\")","v":""},{"$f":"Актив!O19","v":0},{"$f":"IF(N35=\"(\",\")\",\"\")","v":""}]
[null,null,null,null,"6.1",null,{"$f":"Актив!$G$19&\"1\"","v":"11401"}]
[null,null,null,null,"6.2",null,{"$f":"Актив!$G$19&\"2\"","v":"11402"}]
[null,null,null,null,null,"Добавить строку"]
[null,null,null,null,"7",{"$f":"\"Финансовые вложения (стр.\"&Актив!$G$20&\"), в том числе:\"","v":"Финансовые вложения (стр.1150), в том числе:"},null,{"$f":"IF(Актив!H20=\"(\",\"(\",\"\")","v":""},{"$f":"Актив!I20","v":20},{"$f":"IF(H39=\"(\",\")\",\"\")","v":""},{"$f":"IF(Актив!K20=\"(\",\"(\",\"\")","v":""},{"$f":"Актив!L20","v":20},{"$f":"IF(K39=\"(\",\")\",\"\")","v":""},{"$f":"IF(Актив!N20=\"(\",\"(\",\"\")","v":""},{"$f":"Актив!O20","v":20},{"$f":"IF(N39=\"(\",\")\",\"\")","v":""}]
[null,null,null,null,"7.1",null,{"$f":"Актив!$G$20&\"1\"","v":"11501"}]
[null,null,null,null,"7.2",null,{"$f":"Актив!$G$20&\"2\"","v":"11502"}]
[null,null,null,null,"7.3",null,{"$f":"Актив!$G$20&\"3\"","v":"11503"}]
[null,null,null,null,"7.4",null,{"$f":"Актив!$G$20&\"4\"","v":"11504"}]
[null,null,null,null,null,"Добавить строку"]
[null,null,null,null,"8",{"$f":"\"Отложенные налоговые активы (стр.\"&Актив!$G$21&\"), в том числе:\"","v":"Отложенные налоговые активы (стр.1160), в том числе:"},null,{"$f":"IF(Актив!H21=\"(\",\"(\",\"\")","v":""},{"$f":"Актив!I21","v":2868},{"$f":"IF(H45=\"(\",\")\",\"\")","v":""},{"$f":"IF(Актив!K21=\"(\",\"(\",\"\")","v":""},{"$f":"Актив!L21","v":3253},{"$f":"IF(K45=\"(\",\")\",\"\")","v":""},{"$f":"IF(Актив!N21=\"(\",\"(\",\"\")","v":""},{"$f":"Актив!O21","v":11542},{"$f":"IF(N45=\"(\",\")\",\"\")","v":""}]
[null,null,null,null,"8.1",null,{"$f":"Актив!$G$21&\"1\"","v":"11601"}]
[null,null,null,null,null,"Добавить строку"]
[null,null,null,null,"9",{"$f":"\"Вписываемые показатели (стр.\"&IF(Актив!$G$21=\"1180\",\"1185\",\"1165\")&\"), в том числе:\"","v":"Вписываемые показатели (стр.1165), в том числе:"},null,{"$f":"IF((SUMIF(OFFSET(SUM_1165_1,0,-1),\"\",SUM_1165_1)-SUMIF(OFFSET(SUM_1165_1,0,-1),\"(\",SUM_1165_1))<0,\"(\",\"\")","v":""},{"$f":"ABS(SUMIF(OFFSET(SUM_1165_1,0,-1),\"\",SUM_1165_1)-SUMIF(OFFSET(SUM_1165_1,0,-1),\"(\",SUM_1165_1))","v":0},{"$f":"IF(H48=\"(\",\")\",\"\")","v":""},{"$f":"IF((SUMIF(OFFSET(SUM_1165_2,0,-1),\"\",SUM_1165_2)-SUMIF(OFFSET(SUM_1165_2,0,-1),\"(\",SUM_1165_2))<0,\"(\",\"\")","v":""},{"$f":"ABS(SUMIF(OFFSET(SUM_1165_2,0,-1),\"\",SUM_1165_2)-SUMIF(OFFSET(SUM_1165_2,0,-1),\"(\",SUM_1165_2))","v":0},{"$f":"IF(K48=\"(\",\")\",\"\")","v":""},{"$f":"IF((SUMIF(OFFSET(SUM_1165_3,0,-1),\"\",SUM_1165_3)-SUMIF(OFFSET(SUM_1165_3,0,-1),\"(\",SUM_1165_3))<0,\"(\",\"\")","v":""},{"$f":"ABS(SUMIF(OFFSET(SUM_1165_3,0,-1),\"\",SUM_1165_3)-SUMIF(OFFSET(SUM_1165_3,0,-1),\"(\",SUM_1165_3))","v":0},{"$f":"IF(N48=\"(\",\")\",\"\")","v":""}]
[null,null,null,null,"9.1",null,{"$f":"IF(Актив!$G$21=\"1180\",\"1185\",\"1165\")&\"1\"","v":"11651"}]
[null,null,null,null,"9.2",null,{"$f":"IF(Актив!$G$21=\"1180\",\"1185\",\"1165\")&\"2\"","v":"11652"}]
[null,null,null,null,null,"Добавить строку"]
[null,null,null,null,"10",{"$f":"\"Прочие внеоборотные активы (стр.\"&Актив!$G$22&\"), в том числе:\"","v":"Прочие внеоборотные активы (стр.1170), в том числе:"},null,{"$f":"IF(Актив!H22=\"(\",\"(\",\"\")","v":""},{"$f":"Актив!I22","v":115226},{"$f":"IF(H52=\"(\",\")\",\"\")","v":""},{"$f":"IF(Актив!K22=\"(\",\"(\",\"\")","v":""},{"$f":"Актив!L22","v":261911},{"$f":"IF(K52=\"(\",\")\",\"\")","v":""},{"$f":"IF(Актив!N22=\"(\",\"(\",\"\")","v":""},{"$f":"Актив!O22","v":210085},{"$f":"IF(N52=\"(\",\")\",\"\")","v":""}]
[null,null,null,null,"10.1",null,{"$f":"Актив!$G$22&\"1\"","v":"11701"}]
[null,null,null,null,"10.2",null,{"$f":"Актив!$G$22&\"2\"","v":"11702"}]
[null,null,null,null,"10.3",null,{"$f":"Актив!$G$22&\"3\"","v":"11703"}]
[null,null,null,null,null,"Добавить строку"]
[null,null,null,null,"11","Запасы (стр.1210), в том числе:",null,{"$f":"IF(Актив!H25=\"(\",\"(\",\"\")","v":""},{"$f":"Актив!I25","v":53607},{"$f":"IF(H57=\"(\",\")\",\"\")","v":""},{"$f":"IF(Актив!K25=\"(\",\"(\",\"\")","v":""},{"$f":"Актив!L25","v":47372},{"$f":"IF(K57=\"(\",\")\",\"\")","v":""},{"$f":"IF(Актив!N25=\"(\",\"(\",\"\")","v":""},{"$f":"Актив!O25","v":44405},{"$f":"IF(N57=\"(\",\")\",\"\")","v":""}]
[null,null,null,null,"11.1",null,"12101"]
[null,null,null,null,"11.2",null,"12102"]
[null,null,null,null,"11.3",null,"12103"]
[null,null,null,null,"11.4",null,"12104"]
[null,null,null,null,"11.5",null,"12105"]
[null,null,null,null,null,"Добавить строку"]
[null,null,null,null,"12","Налог на добавленную стоимость по приобретенным ценностям (стр.1220), в том числе:",null,{"$f":"IF(Актив!H26=\"(\",\"(\",\"\")","v":""},{"$f":"Актив!I26","v":7542},{"$f":"IF(H64=\"(\",\")\",\"\")","v":""},{"$f":"IF(Актив!K26=\"(\",\"(\",\"\")","v":""},{"$f":"Актив!L26","v":11997},{"$f":"IF(K64=\"(\",\")\",\"\")","v":""},{"$f":"IF(Актив!N26=\"(\",\"(\",\"\")","v":""},{"$f":"Актив!O26","v":16618},{"$f":"IF(N64=\"(\",\")\",\"\")","v":""}]
[null,null,null,null,"12.1",null,"12201"]
[null,null,null,null,null,"Добавить строку"]
[null,null,null,null,"13","Дебиторская задолженность (стр.1230), в том числе:",null,{"$f":"IF(Актив!H27=\"(\",\"(\",\"\")","v":""},{"$f":"Актив!I27","v":295458},{"$f":"IF(H67=\"(\",\")\",\"\")","v":""},{"$f":"IF(Актив!K27=\"(\",\"(\",\"\")","v":""},{"$f":"Актив!L27","v":300686},{"$f":"IF(K67=\"(\",\")\",\"\")","v":""},{"$f":"IF(Актив!N27=\"(\",\"(\",\"\")","v":""},{"$f":"Актив!O27","v":256515},{"$f":"IF(N67=\"(\",\")\",\"\")","v":""}]
[null,null,null,null,"13.1",null,"12301"]
[null,null,null,null,"13.2",null,"12302"]
[null,null,null,null,"13.3",null,"12303"]
[null,null,null,null,"13.4",null,"12304"]
[null,null,null,null,"13.5",null,"12305"]
[null,null,null,null,null,"Добавить строку"]
[null,null,null,null,"14","Финансовые вложения (за исключением денежных эквивалентов) (стр.1240), в том числе:",null,{"$f":"IF(Актив!H28=\"(\",\"(\",\"\")","v":""},{"$f":"Актив!I28","v":0},{"$f":"IF(H74=\"(\",\")\",\"\")","v":""},{"$f":"IF(Актив!K28=\"(\",\"(\",\"\")","v":""},{"$f":"Актив!L28","v":0},{"$f":"IF(K74=\"(\",\")\",\"\")","v":""},{"$f":"IF(Актив!N28=\"(\",\"(\",\"\")","v":""},{"$f":"Актив!O28","v":0},{"$f":"IF(N74=\"(\",\")\",\"\")","v":""}]
[null,null,null,null,"14.1",null,"12401"]
[null,null,null,null,"14.2",null,"12402"]
[null,null,null,null,"14.3",null,"12403"]
[null,null,null,null,null,"Добавить строку"]
[null,null,null,null,"15","Денежные средства и денежные эквиваленты (стр.1250), в том числе:",null,{"$f":"IF(Актив!H29=\"(\",\"(\",\"\")","v":""},{"$f":"Актив!I29","v":22661},{"$f":"IF(H79=\"(\",\")\",\"\")","v":""},{"$f":"IF(Актив!K29=\"(\",\"(\",\"\")","v":""},{"$f":"Актив!L29","v":30778},{"$f":"IF(K79=\"(\",\")\",\"\")","v":""},{"$f":"IF(Актив!N29=\"(\",\"(\",\"\")","v":""},{"$f":"Актив!O29","v":52640},{"$f":"IF(N79=\"(\",\")\",\"\")","v":""}]
[null,null,null,null,"15.1",null,"12501"]
[null,null,null,null,"15.2",null,"12502"]
[null,null,null,null,null,"Добавить строку"]
[null,null,null,null,"16","Вписываемые показатели (стр.1255), в том числе:",null,{"$f":"IF((SUMIF(OFFSET(SUM_1255_1,0,-1),\"\",SUM_1255_1)-SUMIF(OFFSET(SUM_1255_1,0,-1),\"(\",SUM_1255_1))<0,\"(\",\"\")","v":""},{"$f":"ABS(SUMIF(OFFSET(SUM_1255_1,0,-1),\"\",SUM_1255_1)-SUMIF(OFFSET(SUM_1255_1,0,-1),\"(\",SUM_1255_1))","v":0},{"$f":"IF(H83=\"(\",\")\",\"\")","v":""},{"$f":"IF((SUMIF(OFFSET(SUM_1255_2,0,-1),\"\",SUM_1255_2)-SUMIF(OFFSET(SUM_1255_2,0,-1),\"(\",SUM_1255_2))<0,\"(\",\"\")","v":""},{"$f":"ABS(SUMIF(OFFSET(SUM_1255_2,0,-1),\"\",SUM_1255_2)-SUMIF(OFFSET(SUM_1255_2,0,-1),\"(\",SUM_1255_2))","v":0},{"$f":"IF(K83=\"(\",\")\",\"\")","v":""},{"$f":"IF((SUMIF(OFFSET(SUM_1255_3,0,-1),\"\",SUM_1255_3)-SUMIF(OFFSET(SUM_1255_3,0,-1),\"(\",SUM_1255_3))<0,\"(\",\"\")","v":""},{"$f":"ABS(SUMIF(OFFSET(SUM_1255_3,0,-1),\"\",SUM_1255_3)-SUMIF(OFFSET(SUM_1255_3,0,-1),\"(\",SUM_1255_3))","v":0},{"$f":"IF(N83=\"(\",\")\",\"\")","v":""}]
[null,null,null,null,"16.1",null,12551]
[null,null,null,null,"16.2",null,12552]
[null,null,null,null,null,"Добавить строку"]
[null,null,null,null,"17","Прочие оборотные активы (стр.1260), в том числе:",null,{"$f":"IF(Актив!H30=\"(\",\"(\",\"\")","v":""},{"$f":"Актив!I30","v":25228},{"$f":"IF(H87=\"(\",\")\",\"\")","v":""},{"$f":"IF(Актив!K30=\"(\",\"(\",\"\")","v":""},{"$f":"Актив!L30","v":27892},{"$f":"IF(K87=\"(\",\")\",\"\")","v":""},{"$f":"IF(Актив!N30=\"(\",\"(\",\"\")","v":""},{"$f":"Актив!O30","v":18270},{"$f":"IF(N87=\"(\",\")\",\"\")","v":""}]
[null,null,null,null,"17.1",null,"12601"]
[null,null,null,null,"17.2",null,"12602"]
[null,null,null,null,"17.3",null,"12603"]
[null,null,null,null,null,"Добавить строку"]
[null,null,null,null,"18","Уставный капитал (складочный капитал, уставный фонд, вклады товарищей) (стр.1310), в том числе:",null,{"$f":"IF(Пассив!H14=\"(\",\"(\",\"\")","v":""},{"$f":"Пассив!I14","v":51},{"$f":"IF(H92=\"(\",\")\",\"\")","v":""},{"$f":"IF(Пассив!K14=\"(\",\"(\",\"\")","v":""},{"$f":"Пассив!L14","v":51},{"$f":"IF(K92=\"(\",\")\",\"\")","v":""},{"$f":"IF(Пассив!N14=\"(\",\"(\",\"\")","v":""},{"$f":"Пассив!O14","v":51},{"$f":"IF(N92=\"(\",\")\",\"\")","v":""}]
[null,null,null,null,"18.1",null,"13101"]
[null,null,null,null,null,"Добавить строку"]
[null,null,null,null,"19","Собственные акции, выкупленные у акционеров (стр.1320), в том числе:",null,{"$f":"IF(Пассив!H15=\"(\",\"(\",\"\")","v":"("},{"$f":"Пассив!I15","v":0},{"$f":"IF(H95=\"(\",\")\",\"\")","v":")"},{"$f":"IF(Пассив!K15=\"(\",\"(\",\"\")","v":"("},{"$f":"Пассив!L15","v":0},{"$f":"IF(K95=\"(\",\")\",\"\")","v":")"},{"$f":"IF(Пассив!N15=\"(\",\"(\",\"\")","v":"("},{"$f":"Пассив!O15","v":0},{"$f":"IF(N95=\"(\",\")\",\"\")","v":")"}]
[null,null,null,null,"19.1",null,"13201","(",null,")","(",null,")","(",null,")"]
[null,null,null,null,null,"Добавить строку"]
[null,null,null,null,"20","Целевой капитал (стр.1320), в том числе:",null,{"$f":"IF((SUMIF(OFFSET(SUM_1320_1,0,-1),\"\",SUM_1320_1)-SUMIF(OFFSET(SUM_1320_1,0,-1),\"(\",SUM_1320_1))<0,\"(\",\"\")","v":""},{"$f":"ABS(SUMIF(OFFSET(SUM_1320_1,0,-1),\"\",SUM_1320_1)-SUMIF(OFFSET(SUM_1320_1,0,-1),\"(\",SUM_1320_1))","v":0},{"$f":"IF(H98=\"(\",\")\",\"\")","v":""},{"$f":"IF((SUMIF(OFFSET(SUM_1320_2,0,-1),\"\",SUM_1320_2)-SUMIF(OFFSET(SUM_1320_2,0,-1),\"(\",SUM_1320_2))<0,\"(\",\"\")","v":""},{"$f":"ABS(SUMIF(OFFSET(SUM_1320_2,0,-1),\"\",SUM_1320_2)-SUMIF(OFFSET(SUM_1320_2,0,-1),\"(\",SUM_1320_2))","v":0},{"$f":"IF(K98=\"(\",\")\",\"\")","v":""},{"$f":"IF((SUMIF(OFFSET(SUM_1320_3,0,-1),\"\",SUM_1320_3)-SUMIF(OFFSET(SUM_1320_3,0,-1),\"(\",SUM_1320_3))<0,\"(\",\"\")","v":""},{"$f":"ABS(SUMIF(OFFSET(SUM_1320_3,0,-1),\"\",SUM_1320_3)-SUMIF(OFFSET(SUM_1320_3,0,-1),\"(\",SUM_1320_3))","v":0},{"$f":"IF(N98=\"(\",\")\",\"\")","v":""}]
[null,null,null,null,"20.1",null,"13201"]
[null,null,null,null,null,"Добавить строку"]
[null,null,null,null,"21","Переоценка внеоборотных активов (стр.1340), в том числе:",null,{"$f":"IF(Пассив!H16=\"(\",\"(\",\"\")","v":""},{"$f":"Пассив!I16","v":333568},{"$f":"IF(H101=\"(\",\")\",\"\")","v":""},{"$f":"IF(Пассив!K16=\"(\",\"(\",\"\")","v":""},{"$f":"Пассив!L16","v":334085},{"$f":"IF(K101=\"(\",\")\",\"\")","v":""},{"$f":"IF(Пассив!N16=\"(\",\"(\",\"\")","v":""},{"$f":"Пассив!O16","v":334736},{"$f":"IF(N101=\"(\",\")\",\"\")","v":""}]
[null,null,null,null,"21.1",null,"13401"]
[null,null,null,null,null,"Добавить строку"]
[null,null,null,null,"22","Добавочный капитал (без переоценки)/Целевые средства (стр.1350), в том числе:",null,{"$f":"IF(Пассив!H17=\"(\",\"(\",\"\")","v":""},{"$f":"Пассив!I17","v":0},{"$f":"IF(H104=\"(\",\")\",\"\")","v":""},{"$f":"IF(Пассив!K17=\"(\",\"(\",\"\")","v":""},{"$f":"Пассив!L17","v":0},{"$f":"IF(K104=\"(\",\")\",\"\")","v":""},{"$f":"IF(Пассив!N17=\"(\",\"(\",\"\")","v":""},{"$f":"Пассив!O17","v":0},{"$f":"IF(N104=\"(\",\")\",\"\")","v":""}]
[null,null,null,null,"22.1",null,"13501"]
[null,null,null,null,"22.2",null,"13502"]
[null,null,null,null,null,"Добавить строку"]
[null,null,null,null,"23","Резервный капитал/Фонд недвижимого и особо ценного движимого имущества (стр.1360), в том числе:",null,{"$f":"IF(Пассив!H18=\"(\",\"(\",\"\")","v":""},{"$f":"Пассив!I18","v":0},{"$f":"IF(H108=\"(\",\")\",\"\")","v":""},{"$f":"IF(Пассив!K18=\"(\",\"(\",\"\")","v":""},{"$f":"Пассив!L18","v":0},{"$f":"IF(K108=\"(\",\")\",\"\")","v":""},{"$f":"IF(Пассив!N18=\"(\",\"(\",\"\")","v":""},{"$f":"Пассив!O18","v":0},{"$f":"IF(N108=\"(\",\")\",\"\")","v":""}]
[null,null,null,null,"23.1",null,"13601"]
[null,null,null,null,"23.2",null,"13602"]
[null,null,null,null,null,"Добавить строку"]
[null,null,null,null,"24","Нераспределенная прибыль (непокрытый убыток)/Резервные и иные целевые фонды (стр.1370), в том числе:",null,{"$f":"IF(Пассив!H19=\"(\",\"(\",\"\")","v":""},{"$f":"Пассив!I19","v":1313541},{"$f":"IF(H112=\"(\",\")\",\"\")","v":""},{"$f":"IF(Пассив!K19=\"(\",\"(\",\"\")","v":""},{"$f":"Пассив!L19","v":1261041},{"$f":"IF(K112=\"(\",\")\",\"\")","v":""},{"$f":"IF(Пассив!N19=\"(\",\"(\",\"\")","v":""},{"$f":"Пассив!O19","v":1249437},{"$f":"IF(N112=\"(\",\")\",\"\")","v":""}]
[null,null,null,null,"24.1",null,"13701"]
[null,null,null,null,"24.2",null,"13702"]
[null,null,null,null,null,"Добавить строку"]
[null,null,null,null,"25","Вписываемые показатели (стр.1375), в том числе:",null,{"$f":"IF((SUMIF(OFFSET(SUM_1375_1,0,-1),\"\",SUM_1375_1)-SUMIF(OFFSET(SUM_1375_1,0,-1),\"(\",SUM_1375_1))<0,\"(\",\"\")","v":""},{"$f":"ABS(SUMIF(OFFSET(SUM_1375_1,0,-1),\"\",SUM_1375_1)-SUMIF(OFFSET(SUM_1375_1,0,-1),\"(\",SUM_1375_1))","v":0},{"$f":"IF(H116=\"(\",\")\",\"\")","v":""},{"$f":"IF((SUMIF(OFFSET(SUM_1375_2,0,-1),\"\",SUM_1375_2)-SUMIF(OFFSET(SUM_1375_2,0,-1),\"(\",SUM_1375_2))<0,\"(\",\"\")","v":""},{"$f":"ABS(SUMIF(OFFSET(SUM_1375_2,0,-1),\"\",SUM_1375_2)-SUMIF(OFFSET(SUM_1375_2,0,-1),\"(\",SUM_1375_2))","v":0},{"$f":"IF(K116=\"(\",\")\",\"\")","v":""},{"$f":"IF((SUMIF(OFFSET(SUM_1375_3,0,-1),\"\",SUM_1375_3)-SUMIF(OFFSET(SUM_1375_3,0,-1),\"(\",SUM_1375_3))<0,\"(\",\"\")","v":""},{"$f":"ABS(SUMIF(OFFSET(SUM_1375_3,0,-1),\"\",SUM_1375_3)-SUMIF(OFFSET(SUM_1375_3,0,-1),\"(\",SUM_1375_3))","v":0},{"$f":"IF(N116=\"(\",\")\",\"\")","v":""}]
[null,null,null,null,"25.1",null,13751]
[null,null,null,null,"25.2",null,13752]
[null,null,null,null,null,"Добавить строку"]
[null,null,null,null,"26","Заемные средства (стр.1410), в том числе:",null,{"$f":"IF(Пассив!H22=\"(\",\"(\",\"\")","v":""},{"$f":"Пассив!I22","v":0},{"$f":"IF(H120=\"(\",\")\",\"\")","v":""},{"$f":"IF(Пассив!K22=\"(\",\"(\",\"\")","v":""},{"$f":"Пассив!L22","v":0},{"$f":"IF(K120=\"(\",\")\",\"\")","v":""},{"$f":"IF(Пассив!N22=\"(\",\"(\",\"\")","v":""},{"$f":"Пассив!O22","v":0},{"$f":"IF(N120=\"(\",\")\",\"\")","v":""}]
[null,null,null,null,"26.1",null,"14101"]
[null,null,null,null,"26.2",null,"14102"]
[null,null,null,null,null,"Добавить строку"]
[null,null,null,null,"27","Отложенные налоговые обязательства (стр.1420), в том числе:",null,{"$f":"IF(Пассив!H23=\"(\",\"(\",\"\")","v":""},{"$f":"Пассив!I23","v":33644},{"$f":"IF(H124=\"(\",\")\",\"\")","v":""},{"$f":"IF(Пассив!K23=\"(\",\"(\",\"\")","v":""},{"$f":"Пассив!L23","v":32918},{"$f":"IF(K124=\"(\",\")\",\"\")","v":""},{"$f":"IF(Пассив!N23=\"(\",\"(\",\"\")","v":""},{"$f":"Пассив!O23","v":40931},{"$f":"IF(N124=\"(\",\")\",\"\")","v":""}]
[null,null,null,null,"27.1",null,"14201"]
[null,null,null,null,null,"Добавить строку"]
[null,null,null,null,"28","Оценочные обязательства (стр.1430), в том числе:",null,{"$f":"IF(Пассив!H24=\"(\",\"(\",\"\")","v":""},{"$f":"Пассив!I24","v":0},{"$f":"IF(H127=\"(\",\")\",\"\")","v":""},{"$f":"IF(Пассив!K24=\"(\",\"(\",\"\")","v":""},{"$f":"Пассив!L24","v":0},{"$f":"IF(K127=\"(\",\")\",\"\")","v":""},{"$f":"IF(Пассив!N24=\"(\",\"(\",\"\")","v":""},{"$f":"Пассив!O24","v":0},{"$f":"IF(N127=\"(\",\")\",\"\")","v":""}]
[null,null,null,null,"28.1",null,"14301"]
[null,null,null,null,"28.2",null,"14302"]
[null,null,null,null,null,"Добавить строку"]
[null,null,null,null,"29","Вписываемые показатели (стр.1435), в том числе:",null,{"$f":"IF((SUMIF(OFFSET(SUM_1435_1,0,-1),\"\",SUM_1435_1)-SUMIF(OFFSET(SUM_1435_1,0,-1),\"(\",SUM_1435_1))<0,\"(\",\"\")","v":""},{"$f":"ABS(SUMIF(OFFSET(SUM_1435_1,0,-1),\"\",SUM_1435_1)-SUMIF(OFFSET(SUM_1435_1,0,-1),\"(\",SUM_1435_1))","v":0},{"$f":"IF(H131=\"(\",\")\",\"\")","v":""},{"$f":"IF((SUMIF(OFFSET(SUM_1435_2,0,-1),\"\",SUM_1435_2)-SUMIF(OFFSET(SUM_1435_2,0,-1),\"(\",SUM_1435_2))<0,\"(\",\"\")","v":""},{"$f":"ABS(SUMIF(OFFSET(SUM_1435_2,0,-1),\"\",SUM_1435_2)-SUMIF(OFFSET(SUM_1435_2,0,-1),\"(\",SUM_1435_2))","v":0},{"$f":"IF(K131=\"(\",\")\",\"\")","v":""},{"$f":"IF((SUMIF(OFFSET(SUM_1435_3,0,-1),\"\",SUM_1435_3)-SUMIF(OFFSET(SUM_1435_3,0,-1),\"(\",SUM_1435_3))<0,\"(\",\"\")","v":""},{"$f":"ABS(SUMIF(OFFSET(SUM_1435_3,0,-1),\"\",SUM_1435_3)-SUMIF(OFFSET(SUM_1435_3,0,-1),\"(\",SUM_1435_3))","v":0},{"$f":"IF(N131=\"(\",\")\",\"\")","v":""}]
[null,null,null,null,"29.1",null,14351]
[null,null,null,null,"29.2",null,14352]
[null,null,null,null,null,"Добавить строку"]
[null,null,null,null,"30","Прочие долгосрочные обязательства (стр.1450), в том числе:",null,{"$f":"IF(Пассив!H25=\"(\",\"(\",\"\")","v":""},{"$f":"Пассив!I25","v":0},{"$f":"IF(H135=\"(\",\")\",\"\")","v":""},{"$f":"IF(Пассив!K25=\"(\",\"(\",\"\")","v":""},{"$f":"Пассив!L25","v":0},{"$f":"IF(K135=\"(\",\")\",\"\")","v":""},{"$f":"IF(Пассив!N25=\"(\",\"(\",\"\")","v":""},{"$f":"Пассив!O25","v":0},{"$f":"IF(N135=\"(\",\")\",\"\")","v":""}]
[null,null,null,null,"30.1",null,"14501"]
[null,null,null,null,null,"Добавить строку"]
[null,null,null,null,"31","Заемные средства (стр.1510), в том числе:",null,{"$f":"IF(Пассив!H28=\"(\",\"(\",\"\")","v":""},{"$f":"Пассив!I28","v":0},{"$f":"IF(H138=\"(\",\")\",\"\")","v":""},{"$f":"IF(Пассив!K28=\"(\",\"(\",\"\")","v":""},{"$f":"Пассив!L28","v":0},{"$f":"IF(K138=\"(\",\")\",\"\")","v":""},{"$f":"IF(Пассив!N28=\"(\",\"(\",\"\")","v":""},{"$f":"Пассив!O28","v":35942},{"$f":"IF(N138=\"(\",\")\",\"\")","v":""}]
[null,null,null,null,"31.1",null,"15101"]
[null,null,null,null,null,"Добавить строку"]
[null,null,null,null,"32","Кредиторская задолженность (стр.1520), в том числе:",null,{"$f":"IF(Пассив!H29=\"(\",\"(\",\"\")","v":""},{"$f":"Пассив!I29","v":626008},{"$f":"IF(H141=\"(\",\")\",\"\")","v":""},{"$f":"IF(Пассив!K29=\"(\",\"(\",\"\")","v":""},{"$f":"Пассив!L29","v":672434},{"$f":"IF(K141=\"(\",\")\",\"\")","v":""},{"$f":"IF(Пассив!N29=\"(\",\"(\",\"\")","v":""},{"$f":"Пассив!O29","v":554548},{"$f":"IF(N141=\"(\",\")\",\"\")","v":""}]
[null,null,null,null,"32.1",null,"15201"]
[null,null,null,null,"32.2",null,"15202"]
[null,null,null,null,"32.3",null,"15203"]
[null,null,null,null,"32.4",null,"15204"]
[null,null,null,null,"32.5",null,"15205"]
[null,null,null,null,"32.6",null,"15206"]
[null,null,null,null,"32.7",null,"15207"]
[null,null,null,null,null,"Добавить строку"]
[null,null,null,null,"33","Доходы будущих периодов (стр.1530), в том числе:",null,{"$f":"IF(Пассив!H30=\"(\",\"(\",\"\")","v":""},{"$f":"Пассив!I30","v":36547},{"$f":"IF(H150=\"(\",\")\",\"\")","v":""},{"$f":"IF(Пассив!K30=\"(\",\"(\",\"\")","v":""},{"$f":"Пассив!L30","v":42742},{"$f":"IF(K150=\"(\",\")\",\"\")","v":""},{"$f":"IF(Пассив!N30=\"(\",\"(\",\"\")","v":""},{"$f":"Пассив!O30","v":51191},{"$f":"IF(N150=\"(\",\")\",\"\")","v":""}]
[null,null,null,null,"33.1",null,"15301"]
[null,null,null,null,null,"Добавить строку"]
[null,null,null,null,"34","Оценочные обязательства  (стр.1540), в том числе:",null,{"$f":"IF(Пассив!H31=\"(\",\"(\",\"\")","v":""},{"$f":"Пассив!I31","v":0},{"$f":"IF(H153=\"(\",\")\",\"\")","v":""},{"$f":"IF(Пассив!K31=\"(\",\"(\",\"\")","v":""},{"$f":"Пассив!L31","v":0},{"$f":"IF(K153=\"(\",\")\",\"\")","v":""},{"$f":"IF(Пассив!N31=\"(\",\"(\",\"\")","v":""},{"$f":"Пассив!O31","v":0},{"$f":"IF(N153=\"(\",\")\",\"\")","v":""}]
[null,null,null,null,"34.1",null,"15401"]
[null,null,null,null,null,"Добавить строку"]
[null,null,null,null,"35","Вписываемые показатели (стр.1545), в том числе:",null,{"$f":"IF((SUMIF(OFFSET(SUM_1545_1,0,-1),\"\",SUM_1545_1)-SUMIF(OFFSET(SUM_1545_1,0,-1),\"(\",SUM_1545_1))<0,\"(\",\"\")","v":""},{"$f":"ABS(SUMIF(OFFSET(SUM_1545_1,0,-1),\"\",SUM_1545_1)-SUMIF(OFFSET(SUM_1545_1,0,-1),\"(\",SUM_1545_1))","v":0},{"$f":"IF(H156=\"(\",\")\",\"\")","v":""},{"$f":"IF((SUMIF(OFFSET(SUM_1545_2,0,-1),\"\",SUM_1545_2)-SUMIF(OFFSET(SUM_1545_2,0,-1),\"(\",SUM_1545_2))<0,\"(\",\"\")","v":""},{"$f":"ABS(SUMIF(OFFSET(SUM_1545_2,0,-1),\"\",SUM_1545_2)-SUMIF(OFFSET(SUM_1545_2,0,-1),\"(\",SUM_1545_2))","v":0},{"$f":"IF(K156=\"(\",\")\",\"\")","v":""},{"$f":"IF((SUMIF(OFFSET(SUM_1545_3,0,-1),\"\",SUM_1545_3)-SUMIF(OFFSET(SUM_1545_3,0,-1),\"(\",SUM_1545_3))<0,\"(\",\"\")","v":""},{"$f":"ABS(SUMIF(OFFSET(SUM_1545_3,0,-1),\"\",SUM_1545_3)-SUMIF(OFFSET(SUM_1545_3,0,-1),\"(\",SUM_1545_3))","v":0},{"$f":"IF(N156=\"(\",\")\",\"\")","v":""}]
[null,null,null,null,"35.1",null,15451]
[null,null,null,null,"35.2",null,15452]
[null,null,null,null,null,"Добавить строку"]
[null,null,null,null,"36","Прочие краткосрочные обязательства (стр.1550), в том числе:",null,{"$f":"IF(Пассив!H32=\"(\",\"(\",\"\")","v":""},{"$f":"Пассив!I32","v":319},{"$f":"IF(H160=\"(\",\")\",\"\")","v":""},{"$f":"IF(Пассив!K32=\"(\",\"(\",\"\")","v":""},{"$f":"Пассив!L32","v":2935},{"$f":"IF(K160=\"(\",\")\",\"\")","v":""},{"$f":"IF(Пассив!N32=\"(\",\"(\",\"\")","v":""},{"$f":"Пассив!O32","v":2241},{"$f":"IF(N160=\"(\",\")\",\"\")","v":""}]
[null,null,null,null,"36.1",null,"15501"]
[null,null,null,null,null,"Добавить строку"]

{"sheet":"Комментарии","index":7,"n_rows":8,"n_cols":4,"rows_kept":8,"cut":false,"hidden":false,"merged":[[7,3,7,5]]}
[]
["Амурская область"]
[]
[]
[]
[]
[]
[null,null,null,"КОММЕНТАРИИ"]

{"sheet":"Проверка","index":8,"n_rows":13,"n_cols":7,"rows_kept":13,"cut":false,"hidden":false,"merged":[[9,4,9,6]]}
[]
[]
[]
[]
[]
[]
[]
[]
[]
[null,null,null,null,"Результат проверки"]
[]
[null,null,null,null,"Ссылка","Причина","Статус ошибки"]
[null,null,null,null,"1","2","3"]

{"sheet":"AllSheetsInThisWorkbook","index":9,"n_rows":200,"n_cols":2,"rows_kept":200,"cut":false,"hidden":true,"merged":[]}
["Расчетные листы","Скрытые листы"]
["Инструкция","AllSheetsInThisWorkbook"]
["Титульный","et_union"]
["Актив","TEHSHEET"]
["Пассив","REESTR_ORG"]
["Расшифровка показателей","REESTR_FILTERED"]
["Комментарии","REESTR_MO"]
["Проверка","modHyperlink"]
[null,"modChange"]
[null,"modPROV"]
[null,"modTitleSheetHeaders"]
["","modServiceModule"]
["","modCommandButton"]
["","modReestr"]
["","modClassifierValidate"]
["","modInfo"]
["","modfrmReestr"]
["","modfrmDateChoose"]
["","modDblClick"]
["","modUpdTemplMain"]
["","modRegionSelectSub"]
["","modThisWorkbook"]
["","modReestrMO"]
["","modSheetMain01"]
["","modSheetMain02"]
["","modSheetMain03"]
["","modSheetMain04"]
["","modSheetMain05"]
["","modSheetMain06"]
["","Паспорт"]
["",""]
["",""]
["",""]
["",""]
["",""]
["",""]
["",""]
["",""]
["",""]
["",""]
["",""]
["",""]
["",""]
["",""]
["",""]
["",""]
["",""]
["",""]
["",""]
["",""]
["",""]
["",""]
["",""]
["",""]
["",""]
["",""]
["",""]
["",""]
["",""]
["",""]
["",""]
["",""]
["",""]
["",""]
["",""]
["",""]
["",""]
["",""]
["",""]
["",""]
["",""]
["",""]
["",""]
["",""]
["",""]
["",""]
["",""]
["",""]
["",""]
["",""]
["",""]
["",""]
["",""]
["",""]
["",""]
["",""]
["",""]
["",""]
["",""]
["",""]
["",""]
["",""]
["",""]
["",""]
["",""]
["",""]
["",""]
["",""]
["",""]
["",""]
["",""]
["",""]
["",""]
["",""]
["",""]
["",""]
["",""]
["",""]
["",""]
["",""]
["",""]
["",""]
["",""]
["",""]
["",""]
["",""]
["",""]
["",""]
["",""]
["",""]
["",""]
["",""]
["",""]
["",""]
["",""]
["",""]
["",""]
["",""]
["",""]
["",""]
["",""]
["",""]
["",""]
["",""]
["",""]
["",""]
["",""]
["",""]
["",""]
["",""]
["",""]
["",""]
["",""]
["",""]
["",""]
["",""]
["",""]
["",""]
["",""]
["",""]
["",""]
["",""]
["",""]
["",""]
["",""]
["",""]
["",""]
["",""]
["",""]
["",""]
["",""]
["",""]
["",""]
["",""]
["",""]
["",""]
["",""]
["",""]
["",""]
["",""]
["",""]
["",""]
["",""]
["",""]
["",""]
["",""]
["",""]
["",""]
["",""]
["",""]
["",""]
["",""]
["",""]
["",""]
["",""]
["",""]
["",""]
["",""]
["",""]
["",""]
["",""]
["",""]
["",""]
["",""]
["",""]
["",""]
["",""]
["",""]
["",""]
["",""]

{"sheet":"et_union","index":10,"n_rows":22,"n_cols":16,"rows_kept":22,"cut":false,"hidden":true,"merged":[]}
[]
["add_HELP_range"]
[]
[]
[]
["add_HELP_range_2"]
[]
[null,null,null,null,null,null,null,"(",null,")","(",null,")","(",null,")"]
[]
["edit_year_dec_1"]
[]
[null,null,null,null,"3",{"$f":"\"Нематериальные поисковые активы (стр.\"&Актив!$G$16&\"), в том числе:\"","v":"Нематериальные поисковые активы (стр.), в том числе:"},null,{"$f":"IF(Актив!H$16=\"(\",\"(\",\"\")","v":""},{"$f":"Актив!I$16","v":0},{"$f":"IF(H12=\"(\",\")\",\"\")","v":""},{"$f":"IF(Актив!K$16=\"(\",\"(\",\"\")","v":""},{"$f":"Актив!L$16","v":0},{"$f":"IF(K12=\"(\",\")\",\"\")","v":""},{"$f":"IF(Актив!N$16=\"(\",\"(\",\"\")","v":""},{"$f":"Актив!O$16","v":0},{"$f":"IF(N12=\"(\",\")\",\"\")","v":""}]
[null,null,null,null,"3.1",null,{"$f":"Актив!$G$16&\"1\"","v":"1"}]
[null,null,null,null,"3.2",null,{"$f":"Актив!$G$16&\"2\"","v":"2"}]
[null,null,null,null,null,"Добавить строку"]
[]
["edit_year_dec_2"]
[]
[null,null,null,null,"4",{"$f":"\"Материальные поисковые активы (стр.\"&Актив!$G$17&\"), в том числе:\"","v":"Материальные поисковые активы (стр.), в том числе:"},null,{"$f":"IF(Актив!H$17=\"(\",\"(\",\"\")","v":""},{"$f":"Актив!I$17","v":0},{"$f":"IF(H19=\"(\",\")\",\"\")","v":""},{"$f":"IF(Актив!K$17=\"(\",\"(\",\"\")","v":""},{"$f":"Актив!L$17","v":0},{"$f":"IF(K19=\"(\",\")\",\"\")","v":""},{"$f":"IF(Актив!N$17=\"(\",\"(\",\"\")","v":""},{"$f":"Актив!O$17","v":0},{"$f":"IF(N19=\"(\",\")\",\"\")","v":""}]
[null,null,null,null,"4.1",null,{"$f":"Актив!$G$17&\"1\"","v":"1"}]
[null,null,null,null,"4.2",null,{"$f":"Актив!$G$17&\"2\"","v":"2"}]
[null,null,null,null,null,"Добавить строку"]

{"sheet":"TEHSHEET","index":11,"n_rows":86,"n_cols":26,"rows_kept":86,"cut":false,"hidden":true,"merged":[[0,0,1,0],[18,10,18,19],[0,23,0,25],[13,23,13,25]]}
["регион","Логика","Кварталы","Года","Единица измерения","Месяц-текст","Месяц-число","День-число","Указанный год является для организации /org_operates/",null,"XML_ORG_LIST_TAG_NAMES",null,null,null,null,null,null,null,null,null,null,null,null,"Диапазоны с показателями - зависят от года /active_part1_2011/"]
[null,"да","I квартал",2011,"тыс.руб.","январь","01","01","первым отчетным годом",null,"NSRF"]
["Алтайский край","нет","I полугодие",2012,"млн.руб.","февраль","02","02","вторым отчетным годом",null,"MR_NAME",null,null,null,null,null,null,null,null,null,null,null,null,"1.1","Нематериальные активы","1110"]
["Амурская область",null,"9 месяцев",2013,null,"март","03","03","третьим или последующим отчетным годом",null,"OKTMO_MR_NAME",null,null,null,null,null,null,null,null,null,null,null,null,"1.2","Результаты исследований и разработок","1120"]
["Архангельская область",null,"год",2014,null,"апрель","04","04",null,null,"MO_NAME"]
["Астраханская область","Выбранный регион",null,2015,null,"май","05","05",null,null,"OKTMO_NAME"]
["Белгородская область",0,null,null,null,"июнь","06","06",null,null,"ORG_NAME",null,null,null,null,null,null,null,null,null,null,null,null,"1.3","Основные средства ","1130"]
["Брянская область",null,null,null,null,"июль","07","07",null,null,"INN_NAME",null,null,null,null,null,null,null,null,null,null,null,null,"1.4","Доходные вложения в материальные ценности","1140"]
["Владимирская область",null,null,null,null,"август","08","08",null,null,"KPP_NAME",null,null,null,null,null,null,null,null,null,null,null,null,"1.5","Финансовые вложения","1150"]
["Волгоградская область",null,null,null,null,"сентябрь","09","09",null,null,null,null,null,null,null,null,null,null,null,null,null,null,null,"1.6","Отложенные налоговые активы","1160"]
["Вологодская область",null,null,null,null,"октябрь",10,10,null,null,"XML_MR_MO_OKTMO_LIST_TAG_NAMES",null,null,null,null,null,null,null,null,null,null,null,null,"1.7","Прочие внеоборотные активы","1170"]
["Воронежская область",null,null,null,null,"ноябрь",11,11,null,null,"NSRF",null,null,null,null,null,null,null,null,null,null,null,null,"1.8","ИТОГО по разделу I","1100"]
["г.Байконур",null,null,null,null,"декабрь",12,12,null,null,"MR_NAME"]
["г. Москва",null,null,null,null,null,null,13,null,null,"OKTMO_MR_NAME",null,null,null,null,null,null,null,null,null,null,null,null,"Диапазоны с показателями - зависят от года /active_part1_2012/"]
["г.Санкт-Петербург",null,null,null,null,null,null,14,null,null,"MO_NAME"]
["Еврейская автономная область",null,null,null,null,null,null,15,null,null,"OKTMO_NAME",null,null,null,null,null,null,null,null,null,null,null,null,"1.1","Нематериальные активы","1110"]
["Забайкальский край",null,null,null,null,null,null,16,null,null,null,null,null,null,null,null,null,null,null,null,null,null,null,"1.2","Результаты исследований и разработок","1120"]
["Ивановская область",null,null,null,null,null,null,17,null,null,null,null,null,null,null,null,null,null,null,null,null,null,null,"1.3","Нематериальные поисковые активы","1130"]
["Иркутская область",null,null,null,null,null,null,18,null,null,"Формулы с листов Актив и Пассив",null,null,null,null,null,null,null,null,null,null,null,null,"1.4","Материальные поисковые активы","1140"]
["Кабардино-Балкарская республика",null,null,null,null,null,null,19,null,null,"LINE_1100",{"$f":"IF((SUMIF(OFFSET(SUM_1100_1,0,-1),\"\",SUM_1100_1)-SUMIF(OFFSET(SUM_1100_1,0,-1),\"(\",SUM_1100_1))<0,\"(\",\"\")","v":""},{"$f":"ABS(SUMIF(OFFSET(SUM_1100_1,0,-1),\"\",SUM_1100_1)-SUMIF(OFFSET(SUM_1100_1,0,-1),\"(\",SUM_1100_1))","v":1939182},{"$f":"IF(L20=\"(\",\")\",\"\")","v":""},{"$f":"IF((SUMIF(OFFSET(SUM_1100_2,0,-1),\"\",SUM_1100_2)-SUMIF(OFFSET(SUM_1100_2,0,-1),\"(\",SUM_1100_2))<0,\"(\",\"\")","v":""},{"$f":"ABS(SUMIF(OFFSET(SUM_1100_2,0,-1),\"\",SUM_1100_2)-SUMIF(OFFSET(SUM_1100_2,0,-1),\"(\",SUM_1100_2))","v":1927481},{"$f":"IF(O20=\"(\",\")\",\"\")","v":""},{"$f":"IF((SUMIF(OFFSET(SUM_1100_3,0,-1),\"\",SUM_1100_3)-SUMIF(OFFSET(SUM_1100_3,0,-1),\"(\",SUM_1100_3))<0,\"(\",\"\")","v":""},{"$f":"ABS(SUMIF(OFFSET(SUM_1100_3,0,-1),\"\",SUM_1100_3)-SUMIF(OFFSET(SUM_1100_3,0,-1),\"(\",SUM_1100_3))","v":1880629},{"$f":"IF(R20=\"(\",\")\",\"\")","v":""},null,null,null,"1.5","Основные средства ","1150"]
["Калининградская область",null,null,null,null,null,null,20,null,null,"LINE_1200",{"$f":"IF((SUMIF(OFFSET(SUM_1200_1,0,-1),\"\",SUM_1200_1)-SUMIF(OFFSET(SUM_1200_1,0,-1),\"(\",SUM_1200_1))<0,\"(\",\"\")","v":""},{"$f":"ABS(SUMIF(OFFSET(SUM_1200_1,0,-1),\"\",SUM_1200_1)-SUMIF(OFFSET(SUM_1200_1,0,-1),\"(\",SUM_1200_1))","v":404496},"",{"$f":"IF((SUMIF(OFFSET(SUM_1200_2,0,-1),\"\",SUM_1200_2)-SUMIF(OFFSET(SUM_1200_2,0,-1),\"(\",SUM_1200_2))<0,\"(\",\"\")","v":""},{"$f":"ABS(SUMIF(OFFSET(SUM_1200_2,0,-1),\"\",SUM_1200_2)-SUMIF(OFFSET(SUM_1200_2,0,-1),\"(\",SUM_1200_2))","v":418725},"",{"$f":"IF((SUMIF(OFFSET(SUM_1200_3,0,-1),\"\",SUM_1200_3)-SUMIF(OFFSET(SUM_1200_3,0,-1),\"(\",SUM_1200_3))<0,\"(\",\"\")","v":""},{"$f":"ABS(SUMIF(OFFSET(SUM_1200_3,0,-1),\"\",SUM_1200_3)-SUMIF(OFFSET(SUM_1200_3,0,-1),\"(\",SUM_1200_3))","v":388448},"",null,null,null,"1.6","Доходные вложения в материальные ценности","1160"]
["Калужская область",null,null,null,null,null,null,21,null,null,"LINE_1600",{"$f":"IF((IF(L13=\"(\",-LINE_1100_1,LINE_1100_1)+IF(L21=\"(\",-LINE_1200_1,LINE_1200_1))<0,\"(\",\"\")","v":""},{"$f":"ABS(IF(L13=\"(\",-LINE_1100_1,LINE_1100_1)+IF(L21=\"(\",-LINE_1200_1,LINE_1200_1))","v":2343678},"",{"$f":"IF((IF(O13=\"(\",-LINE_1100_2,LINE_1100_2)+IF(O21=\"(\",-LINE_1200_2,LINE_1200_2))<0,\"(\",\"\")","v":""},{"$f":"ABS(IF(O13=\"(\",-LINE_1100_2,LINE_1100_2)+IF(O21=\"(\",-LINE_1200_2,LINE_1200_2))","v":2346206},"",{"$f":"IF((IF(R13=\"(\",-LINE_1100_3,LINE_1100_3)+IF(R21=\"(\",-LINE_1200_3,LINE_1200_3))<0,\"(\",\"\")","v":""},{"$f":"ABS(IF(R13=\"(\",-LINE_1100_3,LINE_1100_3)+IF(R21=\"(\",-LINE_1200_3,LINE_1200_3))","v":2269077},"",null,null,null,"1.7","Финансовые вложения","1170"]
["Камчатский край",null,null,null,null,null,null,22,null,null,"LINE_1300",{"$f":"IF((SUMIF(OFFSET(SUM_1300_1,0,-1),\"\",SUM_1300_1)-SUMIF(OFFSET(SUM_1300_1,0,-1),\"(\",SUM_1300_1))<0,\"(\",\"\")","v":""},{"$f":"ABS(SUMIF(OFFSET(SUM_1300_1,0,-1),\"\",SUM_1300_1)-SUMIF(OFFSET(SUM_1300_1,0,-1),\"(\",SUM_1300_1))","v":1647160},"",{"$f":"IF((SUMIF(OFFSET(SUM_1300_2,0,-1),\"\",SUM_1300_2)-SUMIF(OFFSET(SUM_1300_2,0,-1),\"(\",SUM_1300_2))<0,\"(\",\"\")","v":""},{"$f":"ABS(SUMIF(OFFSET(SUM_1300_2,0,-1),\"\",SUM_1300_2)-SUMIF(OFFSET(SUM_1300_2,0,-1),\"(\",SUM_1300_2))","v":1595177},"",{"$f":"IF((SUMIF(OFFSET(SUM_1300_3,0,-1),\"\",SUM_1300_3)-SUMIF(OFFSET(SUM_1300_3,0,-1),\"(\",SUM_1300_3))<0,\"(\",\"\")","v":""},{"$f":"ABS(SUMIF(OFFSET(SUM_1300_3,0,-1),\"\",SUM_1300_3)-SUMIF(OFFSET(SUM_1300_3,0,-1),\"(\",SUM_1300_3))","v":1584224},"",null,null,null,"1.8","Отложенные налоговые активы","1180"]
["Карачаево-Черкесская республика",null,null,null,null,null,null,23,null,null,"LINE_1400",{"$f":"IF((SUMIF(OFFSET(SUM_1400_1,0,-1),\"\",SUM_1400_1)-SUMIF(OFFSET(SUM_1400_1,0,-1),\"(\",SUM_1400_1))<0,\"(\",\"\")","v":""},{"$f":"ABS(SUMIF(OFFSET(SUM_1400_1,0,-1),\"\",SUM_1400_1)-SUMIF(OFFSET(SUM_1400_1,0,-1),\"(\",SUM_1400_1))","v":33644},"",{"$f":"IF((SUMIF(OFFSET(SUM_1400_2,0,-1),\"\",SUM_1400_2)-SUMIF(OFFSET(SUM_1400_2,0,-1),\"(\",SUM_1400_2))<0,\"(\",\"\")","v":""},{"$f":"ABS(SUMIF(OFFSET(SUM_1400_2,0,-1),\"\",SUM_1400_2)-SUMIF(OFFSET(SUM_1400_2,0,-1),\"(\",SUM_1400_2))","v":32918},"",{"$f":"IF((SUMIF(OFFSET(SUM_1400_3,0,-1),\"\",SUM_1400_3)-SUMIF(OFFSET(SUM_1400_3,0,-1),\"(\",SUM_1400_3))<0,\"(\",\"\")","v":""},{"$f":"ABS(SUMIF(OFFSET(SUM_1400_3,0,-1),\"\",SUM_1400_3)-SUMIF(OFFSET(SUM_1400_3,0,-1),\"(\",SUM_1400_3))","v":40931},"",null,null,null,"1.9","Прочие внеоборотные активы","1190"]
["Кемеровская область",null,null,null,null,null,null,24,null,null,"LINE_1500",{"$f":"IF((SUMIF(OFFSET(SUM_1500_1,0,-1),\"\",SUM_1500_1)-SUMIF(OFFSET(SUM_1500_1,0,-1),\"(\",SUM_1500_1))<0,\"(\",\"\")","v":""},{"$f":"ABS(SUMIF(OFFSET(SUM_1500_1,0,-1),\"\",SUM_1500_1)-SUMIF(OFFSET(SUM_1500_1,0,-1),\"(\",SUM_1500_1))","v":662874},"",{"$f":"IF((SUMIF(OFFSET(SUM_1500_2,0,-1),\"\",SUM_1500_2)-SUMIF(OFFSET(SUM_1500_2,0,-1),\"(\",SUM_1500_2))<0,\"(\",\"\")","v":""},{"$f":"ABS(SUMIF(OFFSET(SUM_1500_2,0,-1),\"\",SUM_1500_2)-SUMIF(OFFSET(SUM_1500_2,0,-1),\"(\",SUM_1500_2))","v":718111},"",{"$f":"IF((SUMIF(OFFSET(SUM_1500_3,0,-1),\"\",SUM_1500_3)-SUMIF(OFFSET(SUM_1500_3,0,-1),\"(\",SUM_1500_3))<0,\"(\",\"\")","v":""},{"$f":"ABS(SUMIF(OFFSET(SUM_1500_3,0,-1),\"\",SUM_1500_3)-SUMIF(OFFSET(SUM_1500_3,0,-1),\"(\",SUM_1500_3))","v":643922},"",null,null,null,"1.10","ИТОГО по разделу I","1100"]
["Кировская область",null,null,null,null,null,null,25,null,null,"LINE_1700",{"$f":"IF((IF(L12=\"(\",-LINE_1300_1,LINE_1300_1)+IF(L18=\"(\",-LINE_1400_1,LINE_1400_1)+IF(L25=\"(\",-LINE_1500_1,LINE_1500_1))<0,\"(\",\"\")","v":""},{"$f":"ABS(IF(L12=\"(\",-LINE_1300_1,LINE_1300_1)+IF(L18=\"(\",-LINE_1400_1,LINE_1400_1)+IF(L25=\"(\",-LINE_1500_1,LINE_1500_1))","v":2343678},"",{"$f":"IF((IF(O12=\"(\",-LINE_1300_2,LINE_1300_2)+IF(O18=\"(\",-LINE_1400_2,LINE_1400_2)+IF(O25=\"(\",-LINE_1500_2,LINE_1500_2))<0,\"(\",\"\")","v":""},{"$f":"ABS(IF(O12=\"(\",-LINE_1300_2,LINE_1300_2)+IF(O18=\"(\",-LINE_1400_2,LINE_1400_2)+IF(O25=\"(\",-LINE_1500_2,LINE_1500_2))","v":2346206},"",{"$f":"IF((IF(R12=\"(\",-LINE_1300_3,LINE_1300_3)+IF(R18=\"(\",-LINE_1400_3,LINE_1400_3)+IF(R25=\"(\",-LINE_1500_3,LINE_1500_3))<0,\"(\",\"\")","v":""},{"$f":"ABS(IF(R12=\"(\",-LINE_1300_3,LINE_1300_3)+IF(R18=\"(\",-LINE_1400_3,LINE_1400_3)+IF(R25=\"(\",-LINE_1500_3,LINE_1500_3))","v":2269077},""]
["Костромская область",null,null,null,null,null,null,26]
["Краснодарский край",null,null,null,null,null,null,27,null,null,"LINE_YELLOW"]
["Красноярский край",null,null,null,null,null,null,28]
["Курганская область",null,null,null,null,null,null,29,null,null,"LINE_YELLOW_ALL"]
["Курская область",null,null,null,null,null,null,30]
["Ленинградская область",null,null,null,null,null,null,31]
["Липецкая область"]
["Магаданская область"]
["Московская область"]
["Мурманская область"]
["Ненецкий автономный округ"]
["Нижегородская область"]
["Новгородская область"]
["Новосибирская область"]
["Омская область"]
["Оренбургская область"]
["Орловская область"]
["Пензенская область"]
["Пермский край"]
["Приморский край"]
["Псковская область"]
["Республика Адыгея"]
["Республика Алтай"]
["Республика Башкортостан"]
["Республика Бурятия"]
["Республика Дагестан"]
["Республика Ингушетия"]
["Республика Калмыкия"]
["Республика Карелия"]
["Республика Коми"]
["Республика Марий Эл"]
["Республика Мордовия"]
["Республика Саха (Якутия)"]
["Республика Северная Осетия-Алания"]
["Республика Татарстан"]
["Республика Тыва"]
["Республика Хакасия"]
["Ростовская область"]
["Рязанская область"]
["Самарская область"]
["Саратовская область"]
["Сахалинская область"]
["Свердловская область"]
["Смоленская область"]
["Ставропольский край"]
["Тамбовская область"]
["Тверская область"]
["Томская область"]
["Тульская область"]
["Тюменская область"]
["Удмуртская республика"]
["Ульяновская область"]
["Хабаровский край"]
["Ханты-Мансийский автономный округ"]
["Челябинская область"]
["Чеченская республика"]
["Чувашская республика"]
["Чукотский автономный округ"]
["Ямало-Ненецкий автономный округ"]
["Ярославская область"]

{"sheet":"REESTR_ORG","index":12,"n_rows":1,"n_cols":8,"rows_kept":1,"cut":false,"hidden":true,"merged":[]}
["№","МР","МО","МО ОКТМО","ОРГАНИЗАЦИЯ","ИНН","КПП","ВИД ДЕЯТЕЛЬНОСТИ"]

{"sheet":"REESTR_FILTERED","index":13,"n_rows":1,"n_cols":8,"rows_kept":1,"cut":false,"hidden":true,"merged":[]}
["№","МР","МО","МО ОКТМО","ОРГАНИЗАЦИЯ","ИНН","КПП","ВИД ДЕЯТЕЛЬНОСТИ"]

{"sheet":"REESTR_MO","index":14,"n_rows":308,"n_cols":5,"rows_kept":308,"cut":false,"hidden":true,"merged":[]}
["МР","МО","МО_ОКТМО","МР","ИМЯ ДИАПАЗОНА"]
["Александро-Невский муниципальный район","Александро-Невский муниципальный район","61620000","Александро-Невский муниципальный район","MO_LIST_2"]
["Александро-Невский муниципальный район","Александро-Невское","61620151","Город Касимов","MO_LIST_3"]
["Александро-Невский муниципальный район","Благовское","61620405","Город Рязань","MO_LIST_4"]
["Александро-Невский муниципальный район","Борисовское","61620410","Город Сасово","MO_LIST_5"]
["Александро-Невский муниципальный район","Бурминское","61620420","Город Скопин","MO_LIST_6"]
["Александро-Невский муниципальный район","Каширинское","61620450","Ермишинский муниципальный район","MO_LIST_7"]
["Александро-Невский муниципальный район","Ленинское","61620435","Захаровский муниципальный район","MO_LIST_8"]
["Александро-Невский муниципальный район","Нижнеякимецкое","61620445","Кадомский муниципальный район","MO_LIST_9"]
["Александро-Невский муниципальный район","Просеченское","61620460","Касимовский муниципальный район","MO_LIST_10"]
["Город Касимов","Город Касимов","61705000","Клепиковский муниципальный район","MO_LIST_11"]
["Город Рязань","Город Рязань","61701000","Кораблинский муниципальный район","MO_LIST_12"]
["Город Сасово","Город Сасово","61710000","Милославский муниципальный район","MO_LIST_13"]
["Город Скопин","Город Скопин","61715000","Михайловский муниципальный район","MO_LIST_14"]
["Ермишинский муниципальный район","Азеевское","61602405","Пителинский муниципальный район","MO_LIST_15"]
["Ермишинский муниципальный район","Ермишинский муниципальный район","61602000","Пронский муниципальный район","MO_LIST_16"]
["Ермишинский муниципальный район","Ермишинское","61602151","Путятинский муниципальный район","MO_LIST_17"]
["Ермишинский муниципальный район","Мердушинское","61602425","Рыбновский муниципальный район","MO_LIST_18"]
["Ермишинский муниципальный район","Надежкинское","61602430","Ряжский муниципальный район","MO_LIST_19"]
["Ермишинский муниципальный район","Нарминское","61602435","Рязанский муниципальный район","MO_LIST_20"]
["Ермишинский муниципальный район","Савватемское","61602440","Сапожковский муниципальный район","MO_LIST_21"]
["Захаровский муниципальный район","Безлыченское","61604412","Сараевский муниципальный район","MO_LIST_22"]
["Захаровский муниципальный район","Большекоровинское","61604415","Сасовский муниципальный район","MO_LIST_23"]
["Захаровский муниципальный район","Добро-Пчельское","61604430","Скопинский муниципальный район","MO_LIST_24"]
["Захаровский муниципальный район","Елинское","61604432","Спасский муниципальный район","MO_LIST_25"]
["Захаровский муниципальный район","Захаровский муниципальный район","61604000","Старожиловский муниципальный район","MO_LIST_26"]
["Захаровский муниципальный район","Захаровское","61604440","Ухоловский муниципальный район","MO_LIST_27"]
["Захаровский муниципальный район","Плахинское","61604465","Чучковский муниципальный район","MO_LIST_28"]
["Захаровский муниципальный район","Сменовское","61604425","Шацкий муниципальный район","MO_LIST_29"]
["Кадомский муниципальный район","Восходское","61606405","Шиловский муниципальный район","MO_LIST_30"]
["Кадомский муниципальный район","Енкаевское","61606410"]
["Кадомский муниципальный район","Кадомский муниципальный район","61606000"]
["Кадомский муниципальный район","Кадомское","61606151"]
["Кадомский муниципальный район","Котелинское","61606420"]
["Кадомский муниципальный район","Кущапинское","61606430"]
["Касимовский муниципальный район","Ардабьевское","61608403"]
["Касимовский муниципальный район","Ахматовское","61608406"]
["Касимовский муниципальный район","Балушево-Починковское","61608409"]
["Касимовский муниципальный район","Булгаковское","61608439"]
["Касимовский муниципальный район","Гиблицкое","61608418"]
["Касимовский муниципальный район","Гусевское","61608154"]
["Касимовский муниципальный район","Дмитриевское","61608421"]
["Касимовский муниципальный район","Елатомское","61608156"]
["Касимовский муниципальный район","Ермоловское","61608424"]
["Касимовский муниципальный район","Ибердусское","61608430"]
["Касимовский муниципальный район","Касимовский муниципальный район","61608000"]
["Касимовский муниципальный район","Китовское","61608433"]
["Касимовский муниципальный район","Клетинское","61608434"]
["Касимовский муниципальный район","Которовское","61608442"]
["Касимовский муниципальный район","Крутоярское","61608453"]
["Касимовский муниципальный район","Лашманское","61608454"]
["Касимовский муниципальный район","Лощининское","61608471"]
["Касимовский муниципальный район","Новодеревенское","61608456"]
["Касимовский муниципальный район","Овчинниковское","61608459"]
["Касимовский муниципальный район","Первинское","61608462"]
["Касимовский муниципальный район","Погостинское","61608465"]
["Касимовский муниципальный район","Савостьяновское","61608468"]
["Касимовский муниципальный район","Сынтульское","61608160"]
["Касимовский муниципальный район","Токаревское","61608474"]
["Касимовский муниципальный район","Торбаевское","61608412"]
["Касимовский муниципальный район","Шостьинское","61608480"]
["Клепиковский муниципальный район","Алексеевское","61610403"]
["Клепиковский муниципальный район","Болоньское","61610415"]
["Клепиковский муниципальный район","Бусаевское","61610418"]
["Клепиковский муниципальный район","Екшурское","61610451"]
["Клепиковский муниципальный район","Клепиковский муниципальный район","61610000"]
["Клепиковский муниципальный район","Колесниковское","61610448"]
["Клепиковский муниципальный район","Криушинское","61610454"]
["Клепиковский муниципальный район","Макеевское","61610460"]
["Клепиковский муниципальный район","Малаховское","61610463"]
["Клепиковский муниципальный район","Молькинское","61610475"]
["Клепиковский муниципальный район","Ненашкинское","61610487"]
["Клепиковский муниципальный район","Оськинское","61610472"]
["Клепиковский муниципальный район","Спас-Клепиковское","61610101"]
["Клепиковский муниципальный район","Тумское","61610154"]
["Клепиковский муниципальный район","Тюковское","61610484"]
["Клепиковский муниципальный район","Уткинское","61610421"]
["Кораблинский муниципальный район","Бобровинское","61612408"]
["Кораблинский муниципальный район","Кипчаковское","61612424"]
["Кораблинский муниципальный район","Ключанское","61612428"]
["Кораблинский муниципальный район","Ковалинское","61612432"]
["Кораблинский муниципальный район","Кораблинский муниципальный район","61612000"]
["Кораблинский муниципальный район","Кораблинское","61612101"]
["Кораблинский муниципальный район","Молвинослободское","61612456"]
["Кораблинский муниципальный район","Незнановское","61612448"]
["Кораблинский муниципальный район","Пехлецкое","61612460"]
["Кораблинский муниципальный район","Пустотинское","61612464"]
["Кораблинский муниципальный район","Яблоневское","61612484"]
["Милославский муниципальный район","Богородицкое","61615408"]
["Милославский муниципальный район","Большеподовечинское","61615412"]
["Милославский муниципальный район","Горняцкое","61615422"]
["Милославский муниципальный район","Кочуровское","61615428"]
["Милославский муниципальный район","Липяговское","61615432"]
["Милославский муниципальный район","Милославский муниципальный район","61615000"]
["Милославский муниципальный район","Павловское","61615456"]
["Милославский муниципальный район","Центральное","61615160"]
["Милославский муниципальный район","Чернавское","61615472"]
["Милославский муниципальный район","городское поселение Милославское","61615151"]
["Милославский муниципальный район","сельское поселение Милославское","61615444"]
["Михайловский муниципальный район","Виленское","61617406"]
["Михайловский муниципальный район","Голдинское","61617412"]
["Михайловский муниципальный район","Горностаевское","61617415"]
["Михайловский муниципальный район","Грязновское","61617418"]
["Михайловский муниципальный район","Жмуровское","61617421"]
["Михайловский муниципальный район","Ильичевское","61617476"]
["Михайловский муниципальный район","Каморинское","61617433"]
["Михайловский муниципальный район","Красновское","61617439"]
["Михайловский муниципальный район","Михайловский муниципальный район","61617000"]
["Михайловский муниципальный район","Михайловское","61617101"]
["Михайловский муниципальный район","Новопанское","61617448"]
["Михайловский муниципальный район","Октябрьское","61617154"]
["Михайловский муниципальный район","Печерниковское","61617451"]
["Михайловский муниципальный район","Поярковское","61617457"]
["Михайловский муниципальный район","Рачатниковское","61617460"]
["Михайловский муниципальный район","Слободское","61617467"]
["Михайловский муниципальный район","Стрелецко-Высельское","61617470"]
["Михайловский муниципальный район","Трепольское","61617473"]
["Михайловский муниципальный район","Чуриковское","61617485"]
["Михайловский муниципальный район","Щетининское","61617491"]
["Пителинский муниципальный район","Ермо-Николаевское","61623420"]
["Пителинский муниципальный район","Нестеровское","61623425"]
["Пителинский муниципальный район","Пеньковское","61623435"]
["Пителинский муниципальный район","Пителинский муниципальный район","61623000"]
["Пителинский муниципальный район","Пителинское","61623151"]
["Пителинский муниципальный район","Потапьевское","61623450"]
["Пронский муниципальный район","Малинищинское","61625435"]
["Пронский муниципальный район","Мамоновское","61625440"]
["Пронский муниципальный район","Новомичуринское","61625114"]
["Пронский муниципальный район","Октябрьское","61625445"]
["Пронский муниципальный район","Орловское","61625450"]
["Пронский муниципальный район","Погореловское","61625455"]
["Пронский муниципальный район","Пронский муниципальный район","61625000"]
["Пронский муниципальный район","Пронское","61625151"]
["Пронский муниципальный район","Тырновское","61625405"]
["Путятинский муниципальный район","Береговское","61626406"]
["Путятинский муниципальный район","Большеекатериновское","61626403"]
["Путятинский муниципальный район","Карабухинское","61626424"]
["Путятинский муниципальный район","Песочинское","61626432"]
["Путятинский муниципальный район","Путятинский муниципальный район","61626000"]
["Путятинский муниципальный район","Путятинское","61626436"]
["Путятинский муниципальный район","Строевское","61626412"]
["Рыбновский муниципальный район","Алешинское","61627404"]
["Рыбновский муниципальный район","Баграмовское","61627406"]
["Рыбновский муниципальный район","Батуринское","61627408"]
["Рыбновский муниципальный район","Вакинское","61627416"]
["Рыбновский муниципальный район","Глебковское","61627418"]
["Рыбновский муниципальный район","Истобниковское","61627424"]
["Рыбновский муниципальный район","Кузьминское","61627436"]
["Рыбновский муниципальный район","Пионерское","61627476"]
["Рыбновский муниципальный район","Пощуповское","61627456"]
["Рыбновский муниципальный район","Рыбновский муниципальный район","61627000"]
["Рыбновский муниципальный район","Рыбновское","61627101"]
["Рыбновский муниципальный район","Селецкое","61627460"]
["Рыбновский муниципальный район","Ходынинское","61627472"]
["Рыбновский муниципальный район","Чурилковское","61627464"]
["Ряжский муниципальный район","Алешинское","61630405"]
["Ряжский муниципальный район","Дегтянское","61630415"]
["Ряжский муниципальный район","Журавинское","61630420"]
["Ряжский муниципальный район","Петровское","61630450"]
["Ряжский муниципальный район","Поплевинское","61630460"]
["Ряжский муниципальный район","Ряжский муниципальный район","61630000"]
["Ряжский муниципальный район","Ряжское","61630101"]
["Рязанский муниципальный район","Варсковское","61634402"]
["Рязанский муниципальный район","Высоковское","61634409"]
["Рязанский муниципальный район","Вышгородское","61634412"]
["Рязанский муниципальный район","Вышетравинское","61634415"]
["Рязанский муниципальный район","Дубровическое","61634427"]
["Рязанский муниципальный район","Дядьковское","61634430"]
["Рязанский муниципальный район","Екимовское","61634433"]
["Рязанский муниципальный район","Заборьевское","61634436"]
["Рязанский муниципальный район","Заокское","61634439"]
["Рязанский муниципальный район","Искровское","61634485"]
["Рязанский муниципальный район","Кораблинское","61634451"]
["Рязанский муниципальный район","Листвянское","61634457"]
["Рязанский муниципальный район","Льговское","61634460"]
["Рязанский муниципальный район","Мурминское","61634401"]
["Рязанский муниципальный район","Окское","61634475"]
["Рязанский муниципальный район","Подвязьевское","61634478"]
["Рязанский муниципальный район","Полянское","61634483"]
["Рязанский муниципальный район","Ровновское","61634490"]
["Рязанский муниципальный район","Рязанский муниципальный район","61634000"]
["Рязанский муниципальный район","Семеновское","61634495"]
["Рязанский муниципальный район","Турлатовское","61634496"]
["Рязанский муниципальный район","Тюшевское","61634498"]
["Сапожковский муниципальный район","Березниковское","61637435"]
["Сапожковский муниципальный район","Канинское","61637410"]
["Сапожковский муниципальный район","Михеевское","61637405"]
["Сапожковский муниципальный район","Морозово-Борковское","61637430"]
["Сапожковский муниципальный район","Сапожковский муниципальный район","61637000"]
["Сапожковский муниципальный район","Сапожковское","61637151"]
["Сараевский муниципальный район","Алексеевское","61640403"]
["Сараевский муниципальный район","Борецкое","61640412"]
["Сараевский муниципальный район","Бычковское","61640415"]
["Сараевский муниципальный район","Высоковское","61640424"]
["Сараевский муниципальный район","Желобовское","61640430"]
["Сараевский муниципальный район","Кривское","61640436"]
["Сараевский муниципальный район","Можарское","61640442"]
["Сараевский муниципальный район","Муравлянское","61640448"]
["Сараевский муниципальный район","Напольновское","61640451"]
["Сараевский муниципальный район","Новобокинское","61640454"]
["Сараевский муниципальный район","Сараевский муниципальный район","61640000"]
["Сараевский муниципальный район","Сараевское","61640151"]
["Сараевский муниципальный район","Сысоевское","61640469"]
["Сараевский муниципальный район","Телятниковское","61640472"]
["Сараевский муниципальный район","Ягодновское","61640481"]
["Сасовский муниципальный район","Агломазовское","61642403"]
["Сасовский муниципальный район","Алешинское","61642406"]
["Сасовский муниципальный район","Батьковское","61642415"]
["Сасовский муниципальный район","Берестянское","61642408"]
["Сасовский муниципальный район","Гавриловское","61642418"]
["Сасовский муниципальный район","Глядковское","61642420"]
["Сасовский муниципальный район","Демушкинское","61642466"]
["Сасовский муниципальный район","Каргашинское","61642424"]
["Сасовский муниципальный район","Кустаревское","61642433"]
["Сасовский муниципальный район","Малостуденецкое","61642439"]
["Сасовский муниципальный район","Нижнемальцевское","61642448"]
["Сасовский муниципальный район","Новоберезовское","61642454"]
["Сасовский муниципальный район","Придорожное","61642464"]
["Сасовский муниципальный район","Сасовский муниципальный район","61642000"]
["Сасовский муниципальный район","Сотницынское","61642470"]
["Сасовский муниципальный район","Трудолюбовское","61642463"]
["Скопинский муниципальный район","Вослебовское","61644412"]
["Скопинский муниципальный район","Горловское","61644415"]
["Скопинский муниципальный район","Ильинское","61644430"]
["Скопинский муниципальный район","Корневское","61644445"]
["Скопинский муниципальный район","Павелецкое","61644154"]
["Скопинский муниципальный район","Побединское","61644157"]
["Скопинский муниципальный район","Полянское","61644478"]
["Скопинский муниципальный район","Скопинский муниципальный район","61644000"]
["Скопинский муниципальный район","Успенское","61644488"]
["Скопинский муниципальный район","Шелемишевское","61644496"]
["Спасский муниципальный район","Выжелесское","61646409"]
["Спасский муниципальный район","Гавриловское","61646415"]
["Спасский муниципальный район","Заречинское","61646434"]
["Спасский муниципальный район","Ижевское","61646443"]
["Спасский муниципальный район","Исадское","61646446"]
["Спасский муниципальный район","Кирицкое","61646452"]
["Спасский муниципальный район","Киструсское","61646488"]
["Спасский муниципальный район","Кутуковское","61646455"]
["Спасский муниципальный район","Лакашинское","61646458"]
["Спасский муниципальный район","Михальское","61646461"]
["Спасский муниципальный район","Панинское","61646473"]
["Спасский муниципальный район","Перкинское","61646476"]
["Спасский муниципальный район","Собчаковское","61646485"]
["Спасский муниципальный район","Спасск-Рязанское","61646101"]
["Спасский муниципальный район","Спасский муниципальный район","61646000"]
["Спасский муниципальный район","Троицкое","61646493"]
["Спасский муниципальный район","Федотьевское","61646498"]
["Старожиловский муниципальный район","Гребневское","61648420"]
["Старожиловский муниципальный район","Гулынское","61648425"]
["Старожиловский муниципальный район","Истьинское","61648435"]
["Старожиловский муниципальный район","Ленинское","61648438"]
["Старожиловский муниципальный район","Мелекшинское","61648440"]
["Старожиловский муниципальный район","Старожиловский муниципальный район","61648000"]
["Старожиловский муниципальный район","Старожиловское","61648151"]
["Старожиловский муниципальный район","Столпянское","61648460"]
["Ухоловский муниципальный район","Калининское","61650430"]
["Ухоловский муниципальный район","Коноплинское","61650440"]
["Ухоловский муниципальный район","Ольховское","61650450"]
["Ухоловский муниципальный район","Смолеевское","61650455"]
["Ухоловский муниципальный район","Ухоловский муниципальный район","61650000"]
["Ухоловский муниципальный район","Ухоловское","61650151"]
["Чучковский муниципальный район","Аладьинское","61653405"]
["Чучковский муниципальный район","Завидовское","61653420"]
["Чучковский муниципальный район","Остро-Пластиковское","61653435"]
["Чучковский муниципальный район","Пертовское","61653440"]
["Чучковский муниципальный район","Ункосовское","61653450"]
["Чучковский муниципальный район","Чучковский муниципальный район","61653000"]
["Чучковский муниципальный район","Чучковское","61653151"]
["Шацкий муниципальный район","Агишевское","61656406"]
["Шацкий муниципальный район","Борковское","61656415"]
["Шацкий муниципальный район","Желанновское","61656418"]
["Шацкий муниципальный район","Каверинское","61656421"]
["Шацкий муниципальный район","Казачинское","61656427"]
["Шацкий муниципальный район","Кермисинское","61656433"]
["Шацкий муниципальный район","Криволуцкое","61656460"]
["Шацкий муниципальный район","Куплинское","61656439"]
["Шацкий муниципальный район","Кучасьевское","61656442"]
["Шацкий муниципальный район","Лесно-Конобеевское","61656445"]
["Шацкий муниципальный район","Лесно-Полянское","61656448"]
["Шацкий муниципальный район","Новосвеженское","61656450"]
["Шацкий муниципальный район","Новочернеевское","61656451"]
["Шацкий муниципальный район","Ольховское","61656454"]
["Шацкий муниципальный район","Печинское","61656457"]
["Шацкий муниципальный район","Польно-Ялтуновское","61656463"]
["Шацкий муниципальный район","Тарадеевское","61656478"]
["Шацкий муниципальный район","Чернослободское","61656484"]
["Шацкий муниципальный район","Шацкий муниципальный район","61656000"]
["Шацкий муниципальный район","Шацкое","61656101"]
["Шацкий муниципальный район","Ямбирнское","61656493"]
["Шиловский муниципальный район","Аделинское","61658403"]
["Шиловский муниципальный район","Борковское","61658475"]
["Шиловский муниципальный район","Боровское","61658415"]
["Шиловский муниципальный район","Ерахтурское","61658424"]
["Шиловский муниципальный район","Желудевское","61658427"]
["Шиловский муниципальный район","Задубровское","61658430"]
["Шиловский муниципальный район","Занино-Починковское","61658445"]
["Шиловский муниципальный район","Ибредское","61658473"]
["Шиловский муниципальный район","Инякинское","61658436"]
["Шиловский муниципальный район","Краснохолмское","61658439"]
["Шиловский муниципальный район","Лесновское","61658157"]
["Шиловский муниципальный район","Мосоловское","61658448"]
["Шиловский муниципальный район","Санское","61658472"]
["Шиловский муниципальный район","Тереховское","61658478"]
["Шиловский муниципальный район","Тимошкинское","61658481"]
["Шиловский муниципальный район","Тырновское","61658484"]
["Шиловский муниципальный район","Шиловский муниципальный район","61658000"]
["Шиловский муниципальный район","Шиловское","61658151"]

{"sheet":"modHyperlink","index":15,"n_rows":0,"n_cols":0,"rows_kept":0,"cut":false,"hidden":true,"merged":[]}

{"sheet":"modChange","index":16,"n_rows":0,"n_cols":0,"rows_kept":0,"cut":false,"hidden":true,"merged":[]}

{"sheet":"modPROV","index":17,"n_rows":0,"n_cols":0,"rows_kept":0,"cut":false,"hidden":true,"merged":[]}

{"sheet":"modTitleSheetHeaders","index":18,"n_rows":0,"n_cols":0,"rows_kept":0,"cut":false,"hidden":true,"merged":[]}

{"sheet":"modServiceModule","index":19,"n_rows":0,"n_cols":0,"rows_kept":0,"cut":false,"hidden":true,"merged":[]}

{"sheet":"modCommandButton","index":20,"n_rows":0,"n_cols":0,"rows_kept":0,"cut":false,"hidden":true,"merged":[]}

{"sheet":"modReestr","index":21,"n_rows":0,"n_cols":0,"rows_kept":0,"cut":false,"hidden":true,"merged":[]}

{"sheet":"modClassifierValidate","index":22,"n_rows":0,"n_cols":0,"rows_kept":0,"cut":false,"hidden":true,"merged":[]}

{"sheet":"modInfo","index":23,"n_rows":0,"n_cols":0,"rows_kept":0,"cut":false,"hidden":true,"merged":[]}

{"sheet":"modfrmReestr","index":24,"n_rows":0,"n_cols":0,"rows_kept":0,"cut":false,"hidden":true,"merged":[]}

{"sheet":"modfrmDateChoose","index":25,"n_rows":0,"n_cols":0,"rows_kept":0,"cut":false,"hidden":true,"merged":[]}

{"sheet":"modDblClick","index":26,"n_rows":0,"n_cols":0,"rows_kept":0,"cut":false,"hidden":true,"merged":[]}

{"sheet":"modUpdTemplMain","index":27,"n_rows":0,"n_cols":0,"rows_kept":0,"cut":false,"hidden":true,"merged":[]}

{"sheet":"modRegionSelectSub","index":28,"n_rows":0,"n_cols":0,"rows_kept":0,"cut":false,"hidden":true,"merged":[]}

{"sheet":"modThisWorkbook","index":29,"n_rows":0,"n_cols":0,"rows_kept":0,"cut":false,"hidden":true,"merged":[]}

{"sheet":"modReestrMO","index":30,"n_rows":0,"n_cols":0,"rows_kept":0,"cut":false,"hidden":true,"merged":[]}

{"sheet":"modSheetMain01","index":31,"n_rows":0,"n_cols":0,"rows_kept":0,"cut":false,"hidden":true,"merged":[]}

{"sheet":"modSheetMain02","index":32,"n_rows":0,"n_cols":0,"rows_kept":0,"cut":false,"hidden":true,"merged":[]}

{"sheet":"modSheetMain03","index":33,"n_rows":0,"n_cols":0,"rows_kept":0,"cut":false,"hidden":true,"merged":[]}

{"sheet":"modSheetMain04","index":34,"n_rows":0,"n_cols":0,"rows_kept":0,"cut":false,"hidden":true,"merged":[]}

{"sheet":"modSheetMain05","index":35,"n_rows":0,"n_cols":0,"rows_kept":0,"cut":false,"hidden":true,"merged":[]}

{"sheet":"modSheetMain06","index":36,"n_rows":0,"n_cols":0,"rows_kept":0,"cut":false,"hidden":true,"merged":[]}

{"sheet":"Паспорт","index":37,"n_rows":71,"n_cols":57,"rows_kept":71,"cut":false,"hidden":true,"merged":[[41,8,41,10],[38,8,38,10],[39,8,39,10],[40,8,40,10],[48,8,48,10],[49,8,49,10],[46,8,46,10],[47,8,47,10],[42,8,42,10],[43,8,43,10],[3,3,3,10],[12,5,12,10],[13,5,13,10],[6,5,6,10],[7,5,7,10],[5,3,5,10],[8,5,8,10],[9,5,9,10],[10,5,10,10],[11,5,11,10],[14,6,14,9],[21,5,21,10],[17,3,17,10],[15,5,15,10],[18,5,18,10],[19,5,19,10],[20,5,20,10],[30,5,30,10],[31,7,31,10],[32,7,32,10],[22,5,22,10],[23,5,23,10],[29,3,29,10],[25,3,25,10],[26,5,26,10],[27,3,27,10],[33,3,33,10],[54,3,54,10],[62,5,62,10],[57,5,57,10],[58,5,58,10],[56,3,56,10],[36,8,36,10],[37,8,37,10],[59,5,59,10],[35,3,35,10],[52,8,52,10],[53,8,53,10],[44,8,44,10],[45,8,45,10],[50,8,50,10],[51,8,51,10],[64,3,64,10],[61,3,61,10],[63,5,63,10],[70,5,70,10],[69,5,69,10],[68,5,68,10],[67,5,67,10],[66,3,66,10]]}
[null,null,null,null,null,null,null,null,null,null,null,null,null,null,null,null,null,null,null,null,null,null,null,null,null,null,null,null,null,null,null,null,null,null,null,null,null,null,null,null,null,null,null,null,null,null,null,"Код диапазона:","Название диапазона:","Сфера регулирования:","Подсфера:","Тип информации в шаблоне:","Состояние шаблона:","Периодичность:","\"Геотип\" шаблона:","Тип шаблона:","Заказчик:"]
[null,null,null,null,null,null,null,null,null,null,null,null,null,null,null,null,null,null,null,null,null,null,null,null,null,null,null,null,null,null,null,null,null,null,null,null,null,null,null,null,null,null,null,null,null,null,null,"ps_sr","Сфера регулирования:","Не определено","Не определено","Не определено","Не определено","Не определено","Не определено","Не определено","Не определено"]
[null,null,null,null,null,null,null,null,null,null,null,null,null,null,null,null,null,null,null,null,null,null,null,null,null,null,null,null,null,null,null,null,null,null,null,null,null,null,null,null,null,null,null,null,null,null,null,"ps_ti","Тип информации в шаблоне:","NETS","водоотведение - очистка","Статистический","Проект","Единовременный","Региональный шаблон","Атомарный","РЭК"]
[null,null,null,"Паспорт к шаблону",null,null,null,null,null,null,null,null,null,null,null,null,null,null,null,null,null,null,null,null,null,null,null,null,null,null,null,null,null,null,null,null,null,null,null,null,null,null,null,null,null,null,null,"ps_ssh","Состояние шаблона:","Аэропорты","водоотведение - передача","Расчетный","Утвержден","Ежемесячный","Муниципальный шаблон","Сводный","ФСТ"]
[null,null,null,null,null,null,null,null,null,null,null,null,null,null,null,null,null,null,null,null,null,null,null,null,null,null,null,null,null,null,null,null,null,null,null,null,null,null,null,null,null,null,null,null,null,null,null,"ps_p","Периодичность:","Газ","водоотведение - прием","Обосновывающие материалы",null,"Ежеквартальный","Шаблон от организации",null,"Экспертная организация"]
[null,null,null,"1. Общие сведения",null,null,null,null,null,null,null,null,null,null,null,null,null,null,null,null,null,null,null,null,null,null,null,null,null,null,null,null,null,null,null,null,null,null,null,null,null,null,null,null,null,null,null,"ps_geo","\"Геотип\" шаблона:","Железные дороги","водоснабжение - очистка",null,null,"Ежегодный"]
[null,null,null,"1.1","Код",null,null,null,null,null,null,null,null,null,null,null,null,null,null,null,null,null,null,null,null,null,null,null,null,null,null,null,null,null,null,null,null,null,null,null,null,null,null,null,null,null,null,"ps_tsh","Тип шаблона:","ЖКХ","водоснабжение - передача"]
[null,null,null,"1.2","Краткое наименование",null,null,null,null,null,null,null,null,null,null,null,null,null,null,null,null,null,null,null,null,null,null,null,null,null,null,null,null,null,null,null,null,null,null,null,null,null,null,null,null,null,null,"ps_psr","Подсфера:","Медицина","водоснабжение - подъем"]
[null,null,null,"1.3","Полное наименование",null,null,null,null,null,null,null,null,null,null,null,null,null,null,null,null,null,null,null,null,null,null,null,null,null,null,null,null,null,null,null,null,null,null,null,null,null,null,null,null,null,null,"ps_z","Заказчик:","Порты","выработка ТС  "]
[null,null,null,"1.4","Сфера регулирования ",null,null,null,null,null,null,null,null,null,null,null,null,null,null,null,null,null,null,null,null,null,null,null,null,null,null,null,null,null,null,null,null,null,null,null,null,null,null,null,null,null,null,null,null,"Связь","выработка ТС в режиме комбинированной выработки"]
[null,null,null,"1.5","Подсфера",null,null,null,null,null,null,null,null,null,null,null,null,null,null,null,null,null,null,null,null,null,null,null,null,null,null,null,null,null,null,null,null,null,null,null,null,null,null,null,null,null,null,null,null,"Транспорт","выработка электрической энергии"]
[null,null,null,"1.6","Состояние шаблона (Утвержден/Проект)",null,null,null,null,null,null,null,null,null,null,null,null,null,null,null,null,null,null,null,null,null,null,null,null,null,null,null,null,null,null,null,null,null,null,null,null,null,null,null,null,null,null,null,null,"Электроэнергетика","выработка+передача+сбыт ТС"]
[null,null,null,"1.7","Заказчик",null,null,null,null,null,null,null,null,null,null,null,null,null,null,null,null,null,null,null,null,null,null,null,null,null,null,null,null,null,null,null,null,null,null,null,null,null,null,null,null,null,null,null,null,null,"передача ТС"]
[null,null,null,"1.8","Отчитывается",null,null,null,null,null,null,null,null,null,null,null,null,null,null,null,null,null,null,null,null,null,null,null,null,null,null,null,null,null,null,null,null,null,null,null,null,null,null,null,null,null,null,null,null,null,"передача ЭЭ"]
[null,null,null,"1.9","Тип шаблона",null,"Если шаблон сводный, необходимо указать код атомарного шаблона для него:",null,null,null,null,null,null,null,null,null,null,null,null,null,null,null,null,null,null,null,null,null,null,null,null,null,null,null,null,null,null,null,null,null,null,null,null,null,null,null,null,null,null,null,"сбыт ТС"]
[null,null,null,"1.10","Текущая версия",null,null,null,null,null,null,null,null,null,null,null,null,null,null,null,null,null,null,null,null,null,null,null,null,null,null,null,null,null,null,null,null,null,null,null,null,null,null,null,null,null,null,null,null,null,"сбыт ЭЭ"]
[null,null,null,null,null,null,null,null,null,null,null,null,null,null,null,null,null,null,null,null,null,null,null,null,null,null,null,null,null,null,null,null,null,null,null,null,null,null,null,null,null,null,null,null,null,null,null,null,null,null,"ТБО"]
[null,null,null,"2. Организационные"]
[null,null,null,"2.1","Тип информации в шаблоне "]
[null,null,null,"2.2","Ответственный регулятор (от заказчика)"]
[null,null,null,"2.3","Ответственный специалист (от СМА)"]
[null,null,null,"2.4","Ответственный программист (от СМА)"]
[null,null,null,"2.5","Ответственные за сбор данных (от СМА)"]
[null,null,null,"2.6","Ответственные за сбор данных (от заказчика)"]
[]
[null,null,null,"3. Законодательство (методики, приказы, постановления ...)"]
[null,null,"first","3.1","Документ1"]
[null,null,"end","Добавить документ"]
[]
[null,null,null,"4. Периодичность"]
[null,null,null,"4.1","Периодичность"]
[null,null,null,null,"Мониторинги(прошедшие и плановые)","Дата начала","Дата окончания","Согласно (приказ, постановление, письмо)"]
[null,null,"first","4.2.1","Мониторинг1"]
[null,null,"end","Добавить мониторинг"]
[]
[null,null,null,"5. Состав шаблона"]
[null,null,null,null,"Лист","Последняя дата изменений эскиза","Состояние листа","Наименование витрины для листа","Комментарии"]
[null,null,"first","5.1.1"]
[null,null,"Удалить","5.1.2"]
[null,null,"Удалить","5.1.3"]
[null,null,"Удалить","5.1.4"]
[null,null,"Удалить","5.1.5"]
[null,null,"Удалить","5.1.6"]
[null,null,"Удалить","5.1.7"]
[null,null,"Удалить","5.1.8"]
[null,null,"Удалить","5.1.9"]
[null,null,"Удалить","5.1.10"]
[null,null,"Удалить","5.1.11"]
[null,null,"Удалить","5.1.12"]
[null,null,"Удалить","5.1.13"]
[null,null,"Удалить","5.1.14"]
[null,null,"Удалить","5.1.15"]
[null,null,"Удалить","5.1.16"]
[null,null,"Удалить","5.1.17"]
[null,null,"end","Добавить лист"]
[]
[null,null,null,"6. Сроки и даты"]
[null,null,null,"6.1.1","Даты получения последних эскизов, от экспертов"]
[null,null,null,"6.1.2","Даты отправки шаблона на проверку"]
[null,null,null,"6.1.3","Предполагаемый срок сдачи шаблона в эксплуатацию"]
[]
[null,null,null,"7. Версии"]
[null,null,null,null,"Версия","Отличия от предыдущей"]
[null,null,"first","7.1"]
[null,null,"end","Добавить версию"]
[]
[null,null,null,"8. Дополнительно"]
[null,null,null,"8.1","Аналогичные(\"похожие\") шаблоны"]
[null,null,null,"8.2","Особенности шаблона"]
[null,null,null,"8.3","Модуль на основе данного шаблона"]
[null,null,null,"8.4","Процедуры загрузки данных в витрины"]